{"text_format":"3","workbook":"xlsx","n_sheets":1,"sheets":["Sheet1"],"not_rendered":{"defined_names":2},"read":"whole","date_system":"1900"}

{"sheet":"Sheet1","index":0,"n_rows":265,"n_cols":21,"rows_kept":265,"merged":[[1,0,1,20],[2,0,4,0],[2,1,4,1],[2,2,4,2],[2,3,4,3],[2,4,4,4],[2,5,4,5],[2,6,4,6],[2,7,4,7],[2,8,4,8],[2,9,4,9],[2,10,2,18],[2,19,4,19],[2,20,4,20],[3,10,4,10],[3,11,4,11],[3,12,4,12],[3,13,3,14],[3,15,4,15],[3,16,4,16],[3,17,4,17],[3,18,4,18],[5,0,14,0],[15,0,22,0],[23,0,24,0],[25,0,31,0],[32,0,40,0],[41,0,54,0],[55,0,61,0],[62,0,70,0],[71,0,77,0],[78,0,85,0],[86,0,89,0],[90,0,96,0],[97,0,98,0],[99,0,100,0],[101,0,108,0],[109,0,110,0],[111,0,119,0],[120,0,126,0],[127,0,132,0],[133,0,134,0],[135,0,137,0],[138,0,140,0],[142,0,144,0],[145,0,156,0],[157,0,165,0],[166,0,172,0],[174,0,181,0],[183,0,186,0],[187,0,188,0],[189,0,199,0],[200,0,205,0],[206,0,208,0],[211,0,216,0],[217,0,219,0],[223,0,224,0],[227,0,228,0],[229,0,233,0],[236,0,237,0],[239,0,241,0],[242,0,243,0],[244,0,245,0],[247,0,248,0],[249,0,250,0],[251,0,252,0],[254,0,255,0],[257,0,258,0],[259,0,261,0],[263,0,264,0]]}
["附件1："]
["西城区教委2024年事业单位公开招聘工作人员（第二批）需求表"]
["单位序号","序号","招聘单位全称","单位\n性质","岗位名称","岗位类别","岗位等级","招聘人数","人员类别","户籍要求","岗位要求",{"$nulls":8},"联系人及电话","单位地址"]
[{"$nulls":10},"年龄","学历","学位","所学专业",null,"职称或技术等级","专业工\n作年限","政治面貌","其他条件"]
[{"$nulls":13},"研究生名称","本科名称"]
[{"$f":"MAX(A$5:A5)+1","v":1},1,"北京市第三中学","全额事业","语文教师","专技岗","专技13级",1,"应届毕业生","北京","30周岁及以下","本科及以上","取得相应学位","学科教学（语文）、中国古代文学、中国现当代文学","汉语言文学、中国语言文学类专业、汉语言","不限","不限","不限","取得相应学科高级中学教师资格证书","杨老师\n66180329","西城区富国街3号"]
[null,2,"北京市第三中学","全额事业","数学教师","专技岗","专技13级",1,"应届毕业生","北京","30周岁及以下","本科及以上","取得相应学位","学科教学（数学）、应用数学","数学与应用数学、数学类专业","不限","不限","不限","取得相应学科高级中学教师资格证书","杨老师\n66180329","西城区富国街3号"]
[null,3,"北京市第三中学","全额事业","数学教师1","专技岗","专技13级",1,"应届毕业生","不限","30周岁及以下","硕士研究生及以上","取得相应学位","应用数学、学科教学（数学）、数学",null,"不限","不限","不限","取得相应学科高级中学教师资格证书；博士研究生年龄可放宽到35周岁及以下","杨老师\n66180329","西城区富国街3号"]
[null,4,"北京市第三中学","全额事业","英语教师","专技岗","专技13级",1,"应届毕业生","北京","30周岁及以下","本科及以上","取得相应学位","学科教学（英语）、英语语言文学","英语、翻译","不限","不限","不限","取得相应学科高级中学教师资格证书","杨老师\n66180329","西城区富国街3号"]
[null,5,"北京市第三中学","全额事业","英语教师1","专技岗","专技13级",1,"应届毕业生","不限","30周岁及以下","硕士研究生及以上","取得相应学位","学科教学（英语）、英语语言文学、英语笔译",null,"不限","不限","不限","取得相应学科高级中学教师资格证书；博士研究生年龄可放宽到35周岁及以下","杨老师\n66180329","西城区富国街3号"]
[null,6,"北京市第三中学","全额事业","物理教师","专技岗","专技13级",1,"应届毕业生","北京","30周岁及以下","本科及以上","取得相应学位","物理学、学科教学（物理）","物理学类","不限","不限","不限","取得相应学科高级中学教师资格证书","杨老师\n66180329","西城区富国街3号"]
[null,7,"北京市第三中学","全额事业","物理教师1","专技岗","专技13级",1,"应届毕业生","不限","30周岁及以下","硕士研究生及以上","取得相应学位","学科教学（物理）、物理学、理论物理",null,"不限","不限","不限","取得相应学科高级中学教师资格证书；博士研究生年龄可放宽到35周岁及以下","杨老师\n66180329","西城区富国街3号"]
[null,8,"北京市第三中学","全额事业","地理教师","专技岗","专技13级",1,"应届毕业生","北京","30周岁及以下","本科及以上","取得相应学位","学科教学（地理）、地理学","地理科学类","不限","不限","不限","取得相应学科高级中学教师资格证书","杨老师\n66180329","西城区富国街3号"]
[null,9,"北京市第三中学","全额事业","地理教师1","专技岗","专技13级",1,"应届毕业生","不限","30周岁及以下","硕士研究生及以上","取得相应学位","学科教学（地理）、自然地理学、人文地理学",null,"不限","不限","不限","取得相应学科高级中学教师资格证书；博士研究生年龄可放宽到35周岁及以下","杨老师\n66180329","西城区富国街3号"]
[null,10,"北京市第三中学","全额事业","政治教师","专技岗","专技13级",1,"应届毕业生","北京","30周岁及以下","本科及以上","取得相应学位","学科教学（思政）、马克思主义哲学、马克思主义理论","政治学、经济学与哲学、马克思主义理论类","不限","不限","不限","取得相应学科高级中学教师资格证书","杨老师\n66180329","西城区富国街3号"]
[{"$f":"MAX(A$5:A15)+1","v":2},11,"北京市第四中学","全额事业","语文教师","专技岗","专技13级",1,"应届毕业生","不限","30周岁及以下","硕士研究生","取得相应学位","学科教学（语文）、课程与教学论",null,"不限","不限","不限","取得相应学科高级中学教师资格证书","屈老师\n王老师\n66175061","西城区西黄城根北街甲2号"]
[null,12,"北京市第四中学","全额事业","数学教师","专技岗","专技13级",1,"应届毕业生","不限","30周岁及以下","博士研究生","取得相应学位","学科教学（数学）、概率论与数理统计",null,"不限","不限","不限","取得相应学科高级中学教师资格证书","屈老师\n王老师\n66175061","西城区西黄城根北街甲2号"]
[null,13,"北京市第四中学","全额事业","英语教师","专技岗","专技13级",2,"应届毕业生","不限","30周岁及以下","硕士研究生","取得相应学位","学科教学（英语）、英语口译",null,"不限","不限","不限","取得相应学科高级中学教师资格证书；取得全国高校英语专业八级考试证书","屈老师\n王老师\n66175061","西城区西黄城根北街甲2号"]
[null,14,"北京市第四中学","全额事业","生物教师","专技岗","专技13级",1,"应届毕业生","不限","30周岁及以下","硕士研究生","取得相应学位","学科教学（生物）、课程与教学论",null,"不限","不限","不限","取得相应学科高级中学教师资格证书","屈老师\n王老师\n66175061","西城区西黄城根北街甲2号"]
[null,15,"北京市第四中学","全额事业","政治教师","专技岗","专技13级",2,"应届毕业生","不限","30周岁及以下","硕士研究生","取得相应学位","马克思主义理论、中国哲学",null,"不限","不限","中共党员","取得相应学科高级中学教师资格证书","屈老师\n王老师\n66175061","西城区西黄城根北街甲2号"]
[null,16,"北京市第四中学","全额事业","政治教师1","专技岗","专技13级",1,"应届毕业生","北京","30周岁及以下","硕士研究生","取得相应学位","学科教学（思政）、中共党史",null,"不限","不限","中共党员","取得相应学科高级中学教师资格证书","屈老师\n王老师\n66175061","西城区西黄城根北街甲2号"]
[null,17,"北京市第四中学","全额事业","体育与健康教师","专技岗","专技13级",2,"应届毕业生","不限","30周岁及以下","硕士研究生","取得相应学位","体育教育训练学、体育教学",null,"不限","不限","不限","取得相应学科高级中学教师资格证书","屈老师\n王老师\n66175061","西城区西黄城根北街甲2号"]
[null,18,"北京市第四中学","全额事业","科技教师","专技岗","专技12级",1,"社会人员","北京","35周岁及以下","硕士研究生","取得相应学位","机械电子工程、电气工程学科",null,"二级教师","3年及以上","不限","取得相应学科高级中学教师资格证书","屈老师\n王老师\n66175061","西城区西黄城根北街甲2号"]
[{"$f":"MAX(A$5:A23)+1","v":3},19,"北京市第七中学","全额事业","语文教师","专技岗","专技13级",1,"应届毕业生","北京","30周岁及以下","本科及以上","取得相应学位","中国语言文学、学科教学（语文）","中国语言文学类","不限","不限","不限","取得相应学科高级中学教师资格证书","邵老师\n13611280680","西城区安德路69号"]
[null,20,"北京市第七中学","全额事业","舞蹈教师","专技岗","专技13级",1,"应届毕业生","北京","25周岁及以下","本科","取得相应学位",null,"舞蹈学、舞蹈教育","不限","不限","不限","取得相应学科高级中学教师资格证书","邵老师\n13611280680","西城区安德路69号"]
[{"$f":"MAX(A$5:A25)+1","v":4},21,"北京市第八中学","全额事业","语文教师","专技岗","专技7级",1,"社会人员","北京","45周岁及以下","博士研究生","取得相应学位","中国语言文学、比较文学与世界文学",null,"高级教师","5年及以上","不限","取得相应学科高级中学教师资格证书","袁老师\n59733569","西城区学院小街2号"]
[null,22,"北京市第八中学","全额事业","数学教师","专技岗","专技13级",1,"社会人员","北京","35周岁及以下","博士研究生","取得相应学位","应用数学、学科教学（数学）",null,"不限","不限","不限","取得相应学科高级中学教师资格证书","袁老师\n59733569","西城区学院小街2号"]
[null,23,"北京市第八中学","全额事业","数学教师1","专技岗","专技7级",1,"社会人员","北京","45周岁及以下","硕士研究生","取得相应学位","应用数学、学科教学（数学）",null,"高级教师","5年及以上","不限","取得相应学科高级中学教师资格证书","袁老师\n59733569","西城区学院小街2号"]
[null,24,"北京市第八中学","全额事业","英语教师","专技岗","专技13级",2,"应届毕业生或社会人员","北京","30周岁及以下","硕士研究生","取得相应学位","外国语言学及应用语言学、翻译",null,"不限","不限","不限","取得相应学科高级中学教师资格证书；外国语言学及应用语言学专业需取得全国高校英语专业八级考试证书","袁老师\n59733569","西城区学院小街2号"]
[null,25,"北京市第八中学","全额事业","物理教师","专技岗","专技7级",1,"社会人员","北京","45周岁及以下","博士研究生","取得相应学位","微电子学与固体电子学、学科教学（物理）",null,"高级教师","5年及以上","不限","取得相应学科高级中学教师资格证书","袁老师\n59733569","西城区学院小街2号"]
[null,26,"北京市第八中学","全额事业","生物教师","专技岗","专技12级",1,"社会人员","北京","35周岁及以下","硕士研究生","取得相应学位","生态学、学科教学（生物）",null,"二级教师","3年及以上","不限","取得相应学科高级中学教师资格证书","袁老师\n59733569","西城区学院小街2号"]
[null,27,"北京市第八中学","全额事业","体育与健康教师","专技岗","专技13级",2,"应届毕业生","不限","30周岁及以下","硕士研究生","取得相应学位","运动训练、体育教育训练学",null,"不限","不限","不限","取得相应学科高级中学教师资格证书","袁老师\n59733569","西城区学院小街2号"]
[{"$f":"MAX(A$5:A32)+1","v":5},28,"北京市第十三中学","全额事业","政治教师","专技岗","专技13级",1,"应届毕业生","不限","30周岁及以下","硕士研究生","取得相应学位","马克思主义基本原理、学科教学（思政）",null,"不限","不限","不限","取得相应学科高级中学教师资格证书","孙老师\n56876808","西城区柳荫街27号"]
[null,29,"北京市第十三中学","全额事业","数学教师","专技岗","专技13级",1,"应届毕业生","北京","30周岁及以下","硕士研究生","取得相应学位","学科教学（数学）、数学",null,"不限","不限","不限","取得相应学科高级中学教师资格证书","孙老师\n56876808","西城区柳荫街27号"]
[null,30,"北京市第十三中学","全额事业","数学教师1","专技岗","专技13级",2,"应届毕业生","不限","30周岁及以下","硕士研究生","取得相应学位","数学、基础数学、计算数学、应用数学",null,"不限","不限","不限","取得相应学科高级中学教师资格证书","孙老师\n56876808","西城区柳荫街27号"]
[null,31,"北京市第十三中学","全额事业","英语教师","专技岗","专技13级",2,"应届毕业生","不限","30周岁及以下","硕士研究生","取得相应学位","英语语言文学、学科教学（英语）",null,"不限","不限","不限","取得相应学科高级中学教师资格证书","孙老师\n56876808","西城区柳荫街27号"]
[null,32,"北京市第十三中学","全额事业","物理教师","专技岗","专技13级",2,"应届毕业生","北京","30周岁及以下","硕士研究生","取得相应学位","学科教学（物理）、物理学",null,"不限","不限","不限","取得相应学科高级中学教师资格证书","孙老师\n56876808","西城区柳荫街27号"]
[null,33,"北京市第十三中学","全额事业","历史教师","专技岗","专技13级",1,"应届毕业生","不限","30周岁及以下","硕士研究生","取得相应学位","学科教学（历史）、中国史",null,"不限","不限","不限","取得相应学科高级中学教师资格证书","孙老师\n56876808","西城区柳荫街27号"]
[null,34,"北京市第十三中学","全额事业","化学教师","专技岗","专技13级",1,"应届毕业生","北京","30周岁及以下","硕士研究生","取得相应学位","学科教学（化学）、化学",null,"不限","不限","不限","取得相应学科高级中学教师资格证书","孙老师\n56876808","西城区柳荫街27号"]
[null,35,"北京市第十三中学","全额事业","地理教师","专技岗","专技13级",1,"应届毕业生","不限","30周岁及以下","硕士研究生","取得相应学位","自然地理学、人文地理学、地图学与地理信息系统",null,"不限","不限","不限","取得相应学科高级中学教师资格证书","孙老师\n56876808","西城区柳荫街27号"]
[null,36,"北京市第十三中学","全额事业","体育与健康教师","专技岗","专技13级",2,"应届毕业生","不限","30周岁及以下","硕士研究生","取得相应学位","体育学",null,"不限","不限","不限","取得相应学科高级中学教师资格证书","孙老师\n56876808","西城区柳荫街27号"]
[{"$f":"MAX(A$5:A41)+1","v":6},37,"北京市第十四中学（小学）","全额事业","语文教师","专技岗","专技13级",1,"应届毕业生","北京","25周岁及以下","本科","取得相应学位",null,"汉语言文学、中国语言文学类专业","不限","不限","不限","取得相应学科教师资格证书","李老师\n63039604","西城区莲花河南街2号"]
[null,38,"北京市第十四中学（小学）","全额事业","数学教师","专技岗","专技13级",1,"应届毕业生","北京","25周岁及以下","本科","取得相应学位",null,"数学类、小学教育","不限","不限","不限","取得相应学科教师资格证书","李老师\n63039604","西城区莲花河南街2号"]
[null,39,"北京市第十四中学（中学）","全额事业","语文教师","专技岗","专技13级",3,"应届毕业生","北京","30周岁及以下","硕士研究生","取得相应学位","汉语言文字学、中国古代文学、中国现当代文学、学科教学（语文）",null,"不限","不限","不限","取得相应学科高级中学教师资格证书","李老师\n63039604","西城区莲花河南街2号"]
[null,40,"北京市第十四中学（中学）","全额事业","语文教师1","专技岗","专技13级",1,"应届毕业生","不限","30周岁及以下","硕士研究生","取得相应学位","语言学及应用语言学、汉语言文字学、比较文学与世界文学、汉语国际教育、学科教学（语文）",null,"不限","不限","不限","取得相应学科高级中学教师资格证书","李老师\n63039604","西城区莲花河南街2号"]
[null,41,"北京市第十四中学（中学）","全额事业","数学教师","专技岗","专技13级",2,"应届毕业生","北京","30周岁及以下","硕士研究生","取得相应学位","数学、学科教学（数学）",null,"不限","不限","不限","取得相应学科高级中学教师资格证书","李老师\n63039604","西城区莲花河南街2号"]
[null,42,"北京市第十四中学（中学）","全额事业","数学教师1","专技岗","专技13级",2,"应届毕业生","不限","30周岁及以下","硕士研究生","取得相应学位","数学、学科教学（数学）",null,"不限","不限","不限","取得相应学科高级中学教师资格证书","李老师\n63039604","西城区莲花河南街2号"]
[null,43,"北京市第十四中学（中学）","全额事业","数学教师2","专技岗","专技10级",2,"社会人员","北京","40周岁及以下","硕士研究生","取得相应学位","应用数学、学科教学（数学）、基础数学",null,"一级教师","5年及以上","不限","取得相应学科高级中学教师资格证书","李老师\n63039604","西城区莲花河南街2号"]
[null,44,"北京市第十四中学（中学）","全额事业","英语教师","专技岗","专技13级",3,"应届毕业生","北京","30周岁及以下","硕士研究生","取得相应学位","学科教学（英语）、英语笔译、英语口译、英语语言文学、外国语言学及应用语言学",null,"不限","不限","不限","取得相应学科高级中学教师资格证书；取得全国高校英语专业四级或八级考试证书","李老师\n63039604","西城区莲花河南街2号"]
[null,45,"北京市第十四中学（中学）","全额事业","英语教师1","专技岗","专技12级",2,"社会人员","北京","35周岁及以下","硕士研究生","取得相应学位","英语笔译、英语口译",null,"二级教师","3年及以上","不限","取得相应学科高级中学教师资格证书；取得全国高校英语专业四级或八级考试证书","李老师\n63039604","西城区莲花河南街2号"]
[null,46,"北京市第十四中学（中学）","全额事业","英语教师2","专技岗","专技10级",1,"社会人员","北京","35周岁及以下","硕士研究生","取得相应学位","英语语言文学、英语笔译",null,"一级教师","5年及以上","不限","取得相应学科高级中学教师资格证书；取得全国高校英语专业四级或八级考试证书","李老师\n63039604","西城区莲花河南街2号"]
[null,47,"北京市第十四中学（中学）","全额事业","物理教师","专技岗","专技12级",1,"社会人员","北京","35周岁及以下","硕士研究生","取得相应学位","光学、学科教学（物理）",null,"二级教师","3年及以上","不限","取得相应学科高级中学教师资格证书","李老师\n63039604","西城区莲花河南街2号"]
[null,48,"北京市第十四中学（中学）","全额事业","政治教师","专技岗","专技13级",2,"应届毕业生","北京","30周岁及以下","硕士研究生","取得相应学位","学科教学（思政）、政治学理论、政治学学科、社会学、马克思主义基本原理、思想政治教育",null,"不限","不限","不限","取得相应学科高级中学教师资格证书","李老师\n63039604","西城区莲花河南街2号"]
[null,49,"北京市第十四中学（中学）","全额事业","政治教师1","专技岗","专技13级",1,"应届毕业生","不限","30周岁及以下","硕士研究生","取得相应学位","政治学、学科教学（思政）",null,"不限","不限","不限","取得相应学科高级中学教师资格证书","李老师\n63039604","西城区莲花河南街2号"]
[null,50,"北京市第十四中学（中学）","全额事业","体育与健康教师","专技岗","专技13级",4,"应届毕业生","北京","30周岁及以下","本科及以上","取得相应学位","运动训练、体育教学","体育教育、休闲体育","不限","不限","不限","取得相应学科高级中学教师资格证书","李老师\n63039604","西城区莲花河南街2号"]
[{"$f":"MAX(A$5:A55)+1","v":7},51,"北京市第十五中学","全额事业","语文教师","专技岗","专技13级",1,"应届毕业生","不限","30周岁及以下","硕士研究生及以上","取得相应学位","汉语言文字学、中国古代文学、中国现当代文学、比较文学与世界文学、中国语言文学",null,"不限","不限","不限","取得相应学科高级中学教师资格证书；本科与研究生期间所学专业一致","王老师\n63522036","西城区育新街2号"]
[null,52,"北京市第十五中学","全额事业","英语教师","专技岗","专技13级",1,"应届毕业生","北京","30周岁及以下","硕士研究生及以上","取得相应学位","英语语言文学、外国语言学及应用语言学、英语笔译、英语口译、学科教学（英语）",null,"不限","不限","不限","取得相应学科高级中学教师资格证书；本科与研究生期间所学专业一致；取得全国高校英语专业八级考试证书","王老师\n63522036","西城区育新街2号"]
[null,53,"北京市第十五中学","全额事业","英语教师1","专技岗","专技13级",2,"应届毕业生","不限","30周岁及以下","硕士研究生及以上","取得相应学位","外国语言学及应用语言学、英语笔译、英语语言文学",null,"不限","不限","不限","取得相应学科高级中学教师资格证书；本科与研究生期间所学专业一致；取得全国高校英语专业八级考试证书","王老师\n63522036","西城区育新街2号"]
[null,54,"北京市第十五中学","全额事业","物理教师","专技岗","专技13级",1,"应届毕业生","北京","30周岁及以下","硕士研究生及以上","取得相应学位","物理学、学科教学（物理）",null,"不限","不限","不限","取得相应学科高级中学教师资格证书；本科与研究生期间所学专业一致","王老师\n63522036","西城区育新街2号"]
[null,55,"北京市第十五中学","全额事业","化学教师","专技岗","专技13级",1,"应届毕业生","北京","30周岁及以下","硕士研究生及以上","取得相应学位","化学、学科教学（化学）",null,"不限","不限","不限","取得相应学科高级中学教师资格证书；本科与研究生期间所学专业一致","王老师\n63522036","西城区育新街2号"]
[null,56,"北京市第十五中学","全额事业","历史教师","专技岗","专技13级",1,"应届毕业生","北京","30周岁及以下","硕士研究生及以上","取得相应学位","中国史、世界史、学科教学（历史）",null,"不限","不限","不限","取得相应学科高级中学教师资格证书；本科与研究生期间所学专业一致","王老师\n63522036","西城区育新街2号"]
[null,57,"北京市第十五中学","全额事业","体育与健康教师","专技岗","专技13级",1,"应届毕业生","北京","30周岁及以下","硕士研究生及以上","取得相应学位","体育教育训练学、体育教学",null,"不限","不限","不限","取得相应学科高级中学教师资格证书；本科与研究生期间所学专业一致","王老师\n63522036","西城区育新街2号"]
[{"$f":"MAX(A$5:A62)+1","v":8},58,"北京市第十五中学分校","全额事业","语文教师","专技岗","专技13级",1,"应届毕业生","北京","30周岁及以下","硕士研究生及以上","取得相应学位","中国语言文学、学科教学（语文）",null,"不限","不限","不限","取得相应学科高级中学教师资格证书；本科与研究生期间所学专业一致","王老师\n63522036","西城区育新街2号"]
[null,59,"北京市第十五中学分校","全额事业","语文教师1","专技岗","专技13级",1,"应届毕业生","不限","30周岁及以下","硕士研究生及以上","取得相应学位","汉语言文字学、中国古代文学、中国现当代文学、比较文学与世界文学、中国语言文学",null,"不限","不限","不限","取得相应学科高级中学教师资格证书；本科与研究生期间所学专业一致","王老师\n63522036","西城区育新街2号"]
[null,60,"北京市第十五中学分校","全额事业","数学教师","专技岗","专技13级",1,"应届毕业生","北京","30周岁及以下","硕士研究生及以上","取得相应学位","学科教学（数学）、数学",null,"不限","不限","不限","取得相应学科高级中学教师资格证书；本科与研究生期间所学专业一致","王老师\n63522036","西城区育新街2号"]
[null,61,"北京市第十五中学分校","全额事业","数学教师1","专技岗","专技13级",1,"应届毕业生","不限","30周岁及以下","硕士研究生及以上","取得相应学位","基础数学、概率论与数理统计、应用数学、计算数学",null,"不限","不限","不限","取得相应学科高级中学教师资格证书；本科与研究生期间所学专业一致","王老师\n63522036","西城区育新街2号"]
[null,62,"北京市第十五中学分校","全额事业","英语教师","专技岗","专技13级",1,"应届毕业生","北京","30周岁及以下","硕士研究生及以上","取得相应学位","英语语言文学、外国语言学及应用语言学、英语笔译、英语口译、学科教学（英语）",null,"不限","不限","不限","取得相应学科高级中学教师资格证书；本科与研究生期间所学专业一致；取得全国高校英语专业八级考试证书","王老师\n63522036","西城区育新街2号"]
[null,63,"北京市第十五中学分校","全额事业","英语教师1","专技岗","专技13级",1,"应届毕业生","不限","30周岁及以下","硕士研究生及以上","取得相应学位","外国语言学及应用语言学、英语笔译、英语语言文学",null,"不限","不限","不限","取得相应学科高级中学教师资格证书；本科与研究生期间所学专业一致；取得全国高校英语专业八级考试证书","王老师\n63522036","西城区育新街2号"]
[null,64,"北京市第十五中学分校","全额事业","生物教师","专技岗","专技13级",1,"应届毕业生","北京","30周岁及以下","硕士研究生及以上","取得相应学位","学科教学（生物）、动物学、植物学",null,"不限","不限","不限","取得相应学科高级中学教师资格证书；本科与研究生期间所学专业一致","王老师\n63522036","西城区育新街2号"]
[null,65,"北京市第十五中学分校","全额事业","历史教师","专技岗","专技13级",1,"应届毕业生","北京","30周岁及以下","硕士研究生及以上","取得相应学位","中国史、世界史、学科教学（历史）",null,"不限","不限","不限","取得相应学科高级中学教师资格证书；本科与研究生期间所学专业一致","王老师\n63522036","西城区育新街2号"]
[null,66,"北京市第十五中学分校","全额事业","体育与健康教师","专技岗","专技13级",2,"应届毕业生","北京","30周岁及以下","本科及以上","取得相应学位","体育教育训练学、体育教学、学科教学（体育）","体育教育、运动训练、武术与民族传统体育","不限","不限","不限","取得相应学科高级中学教师资格证书","王老师\n63522036","西城区育新街2号"]
[{"$f":"MAX(A$5:A71)+1","v":9},67,"北京市第三十一中学","全额事业","语文教师","专技岗","专技13级",1,"应届毕业生","不限","30周岁及以下","硕士研究生及以上","取得相应学位","学科教学（语文）、中国语言文学、汉语国际教育",null,"不限","不限","不限","取得相应学科高级中学教师资格证书","刘老师\n66088600\n66056317","西城区西绒线胡同33号"]
[null,68,"北京市第三十一中学","全额事业","英语教师","专技岗","专技7级",1,"社会人员","北京","40周岁及以下","本科","取得相应学位",null,"英语、翻译","高级教师","5年及以上","不限","取得相应学科高级中学教师资格证书","刘老师\n66088600\n66056317","西城区西绒线胡同33号"]
[null,69,"北京市第三十一中学","全额事业","英语教师1","专技岗","专技13级",1,"应届毕业生","北京","25周岁及以下","本科","取得相应学位",null,"英语、翻译","不限","不限","不限","取得相应学科高级中学教师资格证书","刘老师\n66088600\n66056317","西城区西绒线胡同33号"]
[null,70,"北京市第三十一中学","全额事业","物理教师","专技岗","专技13级",1,"应届毕业生","北京","30周岁及以下","硕士研究生","取得相应学位","凝聚态物理、学科教学（物理）",null,"不限","不限","不限","取得相应学科高级中学教师资格证书","刘老师\n66088600\n66056317","西城区西绒线胡同33号"]
[null,71,"北京市第三十一中学","全额事业","化学教师","专技岗","专技13级",1,"应届毕业生","北京","25周岁及以下","本科","取得相应学位",null,"化学、应用化学","不限","不限","不限","取得相应学科高级中学教师资格证书","刘老师\n66088600\n66056317","西城区西绒线胡同33号"]
[null,72,"北京市第三十一中学","全额事业","历史教师","专技岗","专技13级",1,"应届毕业生","不限","30周岁及以下","硕士研究生及以上","取得相应学位","学科教学（历史）、中国史、世界史",null,"不限","不限","不限","取得相应学科高级中学教师资格证书","刘老师\n66088600\n66056317","西城区西绒线胡同33号"]
[null,73,"北京市第三十一中学","全额事业","地理教师","专技岗","专技13级",1,"应届毕业生","北京","25周岁及以下","本科","取得相应学位",null,"地理科学、自然地理与资源环境","不限","不限","不限","取得相应学科高级中学教师资格证书","刘老师\n66088600\n66056317","西城区西绒线胡同33号"]
[{"$f":"MAX(A$5:A78)+1","v":10},74,"北京市第三十五中学","全额事业","语文教师","专技岗","专技12级",2,"应届毕业生或社会人员","北京","35周岁及以下","硕士研究生","取得相应学位","中国语言文学、学科教学（语文）",null,"二级教师","3年及以上","不限","取得相应学科高级中学教师资格证书；应届毕业生职称及专业工作年限不限，年龄为30周岁及以下，所聘岗位等级为专技13级","杨老师\n63886009","西城区赵登禹路8号"]
[null,75,"北京市第三十五中学","全额事业","语文教师1","专技岗","专技12级",1,"社会人员","北京","35周岁及以下","硕士研究生","取得相应学位","汉语言文字学、汉语国际教育",null,"二级教师","3年及以上","不限","取得相应学科高级中学教师资格证书","杨老师\n63886009","西城区赵登禹路8号"]
[null,76,"北京市第三十五中学","全额事业","数学教师","专技岗","专技12级",1,"应届毕业生或社会人员","北京","35周岁及以下","硕士研究生","取得相应学位","数学、学科教学（数学）",null,"二级教师","3年及以上","不限","取得相应学科高级中学教师资格证书；应届毕业生职称及专业工作年限不限，年龄为30周岁及以下，所聘岗位等级为专技13级","杨老师\n63886009","西城区赵登禹路8号"]
[null,77,"北京市第三十五中学","全额事业","数学教师1","专技岗","专技7级",1,"社会人员","北京","40周岁及以下","硕士研究生","取得相应学位","基础数学、学科教学（数学）",null,"高级教师","5年及以上","不限","取得相应学科高级中学教师资格证书","杨老师\n63886009","西城区赵登禹路8号"]
[null,78,"北京市第三十五中学","全额事业","英语教师","专技岗","专技12级",1,"应届毕业生或社会人员","北京","35周岁及以下","硕士研究生","取得相应学位","英语语言文学、外国语言学及应用语言学",null,"二级教师","3年及以上","不限","取得相应学科高级中学教师资格证书；取得全国高校英语专业八级考试证书；应届毕业生职称及专业工作年限不限，年龄为30周岁及以下，所聘岗位等级为专技13级","杨老师\n63886009","西城区赵登禹路8号"]
[null,79,"北京市第三十五中学","全额事业","英语教师1","专技岗","专技10级",1,"社会人员","北京","40周岁及以下","硕士研究生","取得相应学位","英语语言文学、外国语言学及应用语言学",null,"一级教师","5年及以上","不限","取得相应学科高级中学教师资格证书；取得全国高校英语专业八级考试证书","杨老师\n63886009","西城区赵登禹路8号"]
[null,80,"北京市第三十五中学","全额事业","政治教师","专技岗","专技12级",1,"应届毕业生或社会人员","北京","35周岁及以下","硕士研究生","取得相应学位","政治学、马克思主义理论、学科教学（思政）",null,"二级教师","3年及以上","不限","取得相应学科高级中学教师资格证书；应届毕业生职称及专业工作年限不限，年龄为30周岁及以下，所聘岗位等级为专技13级","杨老师\n63886009","西城区赵登禹路8号"]
[null,81,"北京市第三十五中学","全额事业","信息技术教师","专技岗","专技13级",1,"应届毕业生或社会人员","北京","35周岁及以下","硕士研究生","取得相应学位","计算机科学与技术、教育技术学、现代教育技术、科学与技术教育",null,"不限","不限","不限","取得相应学科高级中学教师资格证书；应届毕业生年龄为30周岁及以下","杨老师\n63886009","西城区赵登禹路8号"]
[{"$f":"MAX(A$5:A86)+1","v":11},82,"北京市第三十九中学","全额事业","语文教师","专技岗","专技13级",1,"应届毕业生","北京","30周岁及以下","本科及以上","取得相应学位","学科教学（语文）、汉语言文字学","汉语言文学、汉语言","不限","不限","不限","取得相应学科高级中学教师资格证书","王天甲13501092045","西城区西黄城根北街6号"]
[null,83,"北京市第三十九中学","全额事业","数学教师","专技岗","专技13级",1,"应届毕业生","北京","30周岁及以下","本科及以上","取得相应学位","学科教学（数学）、应用数学","数学与应用数学、数理基础科学","不限","不限","不限","取得相应学科高级中学教师资格证书","王天甲13501092045","西城区西黄城根北街6号"]
[null,84,"北京市第三十九中学","全额事业","数学教师1","专技岗","专技13级",1,"应届毕业生","不限","30周岁及以下","硕士研究生及以上","取得相应学位","应用数学、基础数学、计算数学",null,"不限","不限","不限","取得相应学科高级中学教师资格证书","王天甲13501092045","西城区西黄城根北街6号"]
[null,85,"北京市第三十九中学","全额事业","心理教师","专技岗","专技13级",1,"应届毕业生","北京","25周岁及以下","本科","取得相应学位",null,"应用心理学、心理学","不限","不限","不限","取得相应学科高级中学教师资格证书","王天甲13501092045","西城区西黄城根北街6号"]
[{"$f":"MAX(A$5:A90)+1","v":12},86,"北京市第四十三中学","全额事业","政治教师","专技岗","专技13级",1,"应届毕业生","不限","30周岁及以下","硕士研究生及以上","取得相应学位","思想政治教育、马克思主义基本原理、马克思主义哲学、马克思主义理论、政治学、法学",null,"不限","不限","中共党员","取得相应学科高级中学教师资格证书","赵老师\n63175864","西城区后孙公园胡同37号"]
[null,87,"北京市第四十三中学","全额事业","语文教师","专技岗","专技13级",1,"应届毕业生","不限","30周岁及以下","硕士研究生及以上","取得相应学位","汉语言文字学、中国古代文学、中国现当代文学",null,"不限","不限","不限","取得相应学科高级中学教师资格证书","赵老师\n63175864","西城区后孙公园胡同37号"]
[null,88,"北京市第四十三中学","全额事业","语文教师1","专技岗","专技13级",1,"应届毕业生","北京","30周岁及以下","本科及以上","取得相应学位","中国语言文学、学科教学（语文）","汉语言文学、中国语言与文化","不限","不限","不限","取得相应学科高级中学教师资格证书","赵老师\n63175864","西城区后孙公园胡同37号"]
[null,89,"北京市第四十三中学","全额事业","英语教师","专技岗","专技13级",2,"应届毕业生或社会人员","北京","30周岁及以下","本科及以上","取得相应学位","英语语言文学、英语笔译、英语口译、学科教学（英语）","英语、翻译","不限","1年及以上","不限","取得相应学科高级中学教师资格证书；应届毕业生专业工作年限不限","赵老师\n63175864","西城区后孙公园胡同37号"]
[null,90,"北京市第四十三中学","全额事业","数学教师","专技岗","专技13级",1,"应届毕业生","北京","30周岁及以下","本科及以上","取得相应学位","学科教学（数学）、数学","数学与应用数学、数学类专业","不限","不限","不限","取得相应学科高级中学教师资格证书","赵老师\n63175864","西城区后孙公园胡同37号"]
[null,91,"北京市第四十三中学","全额事业","地理教师","专技岗","专技13级",1,"应届毕业生","北京","30周岁及以下","本科及以上","取得相应学位","学科教学（地理）、地理学","地理科学、地理科学类专业","不限","不限","不限","取得相应学科高级中学教师资格证书","赵老师\n63175864","西城区后孙公园胡同37号"]
[null,92,"北京市第四十三中学","全额事业","信息技术教师","专技岗","专技13级",1,"应届毕业生","北京","30周岁及以下","本科及以上","取得相应学位","计算机应用技术、计算机软件与理论","计算机科学与技术、网络工程、数字媒体技术","不限","不限","不限","取得相应学科高级中学教师资格证书","赵老师\n63175864","西城区后孙公园胡同37号"]
[{"$f":"MAX(A$5:A97)+1","v":13},93,"北京市第四十四中学","全额事业","数学教师","专技岗","专技13级",1,"应届毕业生","北京","30周岁及以下","硕士研究生及以上","取得相应学位","课程与教学论、学科教学（数学）、数学",null,"不限","不限","不限","取得相应学科高级中学教师资格证书；博士研究生年龄可放宽到35周岁及以下","孙老师\n68571771\n13681349025","西城区三里河南横街1号"]
[null,94,"北京市第四十四中学","全额事业","信息技术教师","专技岗","专技13级",1,"应届毕业生","北京","30周岁及以下","本科及以上","取得相应学位","现代教育技术、计算机科学与技术","计算机类","不限","不限","不限","取得相应学科高级中学教师资格证书","孙老师\n68571771\n13681349025","西城区三里河南横街1号"]
[{"$f":"MAX(A$5:A99)+1","v":14},95,"北京市第五十六中学","全额事业","数学教师","专技岗","专技13级",3,"应届毕业生","北京","30周岁及以下","本科及以上","取得相应学位","数学、学科教学（数学）","数学类","不限","不限","不限","取得相应学科高级中学教师资格证书","唐老师\n15810956215","西城区文兴街3号"]
[null,96,"北京市第五十六中学","全额事业","道德与法治教师","专技岗","专技13级",1,"应届毕业生","北京","25周岁及以下","本科及以上","取得相应学位","马克思主义理论、马克思主义基本原理","马克思主义理论类","不限","不限","不限","取得相应学科中学教师资格证书","唐老师\n15810956215","西城区文兴街3号"]
[{"$f":"MAX(A$5:A101)+1","v":15},97,"北京市第六十六中学","全额事业","语文教师","专技岗","专技13级",1,"应届毕业生","北京","30周岁及以下","本科及以上","取得相应学位","中国语言文学、学科教学（语文）、汉语国际教育","中国语言文学类","不限","不限","不限","取得相应学科中学教师资格证书","李老师\n63563911","西城区枣林前街111号"]
[null,98,"北京市第六十六中学","全额事业","语文教师1","专技岗","专技13级",1,"应届毕业生","不限","30周岁及以下","硕士研究生及以上","取得相应学位","文艺学、语言学及应用语言学、汉语言文字学、中国古典文献学、中国古代文学、中国现当代文学、比较文学与世界文学",null,"不限","不限","不限","取得相应学科中学教师资格证书","李老师\n63563911","西城区枣林前街111号"]
[null,99,"北京市第六十六中学","全额事业","数学教师","专技岗","专技13级",1,"应届毕业生","北京","30周岁及以下","本科及以上","取得相应学位","数学、学科教学（数学）","数学类","不限","不限","不限","取得相应学科中学教师资格证书","李老师\n63563911","西城区枣林前街111号"]
[null,100,"北京市第六十六中学","全额事业","数学教师1","专技岗","专技13级",1,"应届毕业生","不限","30周岁及以下","硕士研究生及以上","取得相应学位","基础数学、计算数学、概率论与数理统计、应用数学、运筹学与控制论",null,"不限","不限","不限","取得相应学科中学教师资格证书","李老师\n63563911","西城区枣林前街111号"]
[null,101,"北京市第六十六中学","全额事业","英语教师","专技岗","专技13级",1,"应届毕业生","北京","30周岁及以下","本科及以上","取得相应学位","外国语言文学、翻译、学科教学（英语）","英语、翻译","不限","不限","不限","取得相应学科中学教师资格证书；取得全国高校英语专业四级或八级考试证书","李老师\n63563911","西城区枣林前街111号"]
[null,102,"北京市第六十六中学","全额事业","历史教师","专技岗","专技13级",1,"应届毕业生","北京","30周岁及以下","本科及以上","取得相应学位","历史学、考古学、中国史、世界史、学科教学（历史）","历史学类","不限","不限","不限","取得相应学科中学教师资格证书","李老师\n63563911","西城区枣林前街111号"]
[null,103,"北京市第六十六中学","全额事业","历史教师1","专技岗","专技13级",1,"应届毕业生","不限","30周岁及以下","硕士研究生及以上","取得相应学位","历史文献学、史学理论及史学史、历史地理学、专门史、中国古代史、中国近现代史、世界上古中古史、世界近现代史、世界地区史国别史、世界专门史",null,"不限","不限","不限","取得相应学科中学教师资格证书","李老师\n63563911","西城区枣林前街111号"]
[null,104,"北京市第六十六中学","全额事业","体育与健康教师","专技岗","专技13级",1,"应届毕业生","北京","30周岁及以下","本科及以上","取得相应学位","体育教育训练学、体育教学、学科教学（体育）","体育教育、运动训练","不限","不限","不限","取得相应学科中学教师资格证书","李老师\n63563911","西城区枣林前街111号"]
[{"$f":"MAX(A$5:A109)+1","v":16},105,"北京市第一五六中学","全额事业","英语教师","专技岗","专技13级",1,"应届毕业生或社会人员","北京","30周岁及以下","本科及以上","取得相应学位","学科教学（英语）、英语语言文学、英语笔译、英语口译、外国语言学及应用语言学、课程与教学论","英语、翻译","不限","不限","不限","取得相应学科高级中学教师资格证书；外国语言学及应用语言学专业需取得全国高校英语专业八级考试证书","李老师\n66175408","西城区太平仓胡同16号"]
[null,106,"北京市第一五六中学","全额事业","信息技术教师","专技岗","专技13级",1,"应届毕业生","北京","25周岁及以下","本科","取得相应学位",null,"人工智能、教育技术学","不限","不限","不限","取得相应学科高级中学教师资格证书","李老师\n66175408","西城区太平仓胡同16号"]
[{"$f":"MAX(A$5:A111)+1","v":17},107,"北京市第一五九中学","全额事业","语文教师","专技岗","专技13级",2,"应届毕业生","北京","30周岁及以下","本科及以上","取得相应学位","中国语言文学、学科教学（语文）","中国语言文学类","不限","不限","不限","取得相应学科高级中学教师资格证书","罗老师\n66033672","西城区王府仓胡同23号"]
[null,108,"北京市第一五九中学","全额事业","数学教师","专技岗","专技13级",1,"应届毕业生","北京","30周岁及以下","本科及以上","取得相应学位","数学、学科教学（数学）","数学类","不限","不限","不限","取得相应学科高级中学教师资格证书","罗老师\n66033672","西城区王府仓胡同23号"]
[null,109,"北京市第一五九中学","全额事业","数学教师1","专技岗","专技13级",1,"应届毕业生","不限","30周岁及以下","硕士研究生","取得相应学位","数学",null,"不限","不限","不限","取得相应学科高级中学教师资格证书","罗老师\n66033672","西城区王府仓胡同23号"]
[null,110,"北京市第一五九中学","全额事业","英语教师","专技岗","专技13级",2,"应届毕业生","北京","30周岁及以下","本科及以上","取得相应学位","英语语言文学、学科教学（英语）","英语、翻译","不限","不限","不限","取得相应学科高级中学教师资格证书","罗老师\n66033672","西城区王府仓胡同23号"]
[null,111,"北京市第一五九中学","全额事业","物理教师","专技岗","专技13级",1,"应届毕业生","北京","30周岁及以下","硕士研究生","取得相应学位","物理学",null,"不限","不限","不限","取得相应学科高级中学教师资格证书","罗老师\n66033672","西城区王府仓胡同23号"]
[null,112,"北京市第一五九中学","全额事业","生物教师","专技岗","专技13级",1,"应届毕业生","不限","30周岁及以下","硕士研究生","取得相应学位","生物学、生态学",null,"不限","不限","不限","取得相应学科高级中学教师资格证书","罗老师\n66033672","西城区王府仓胡同23号"]
[null,113,"北京市第一五九中学","全额事业","历史教师","专技岗","专技13级",1,"应届毕业生","北京","30周岁及以下","本科及以上","取得相应学位","中国史、世界史","历史学类","不限","不限","不限","取得相应学科高级中学教师资格证书","罗老师\n66033672","西城区王府仓胡同23号"]
[null,114,"北京市第一五九中学","全额事业","体育与健康教师","专技岗","专技13级",1,"应届毕业生","北京","30周岁及以下","本科及以上","取得相应学位","体育教育训练学、体育教学、学科教学（体育）","体育教育、运动训练","不限","不限","不限","取得相应学科高级中学教师资格证书","罗老师\n66033672","西城区王府仓胡同23号"]
[null,115,"北京市第一五九中学","全额事业","信息技术教师","专技岗","专技13级",1,"应届毕业生","北京","25周岁及以下","本科","取得相应学位",null,"计算机科学与技术、教育技术学","不限","不限","不限","取得相应学科高级中学教师资格证书","罗老师\n66033672","西城区王府仓胡同23号"]
[{"$f":"MAX(A$5:A120)+1","v":18},116,"北京市第一六一中学","全额事业","语文教师","专技岗","专技13级",2,"应届毕业生","不限","30周岁及以下","硕士研究生及以上","取得相应学位","中国语言文学、学科教学（语文）、汉语国际教育、课程与教学论",null,"不限","不限","不限","取得相应学科高级中学教师资格证书","李老师\n66024247","西城区南横西街94号"]
[null,117,"北京市第一六一中学","全额事业","语文教师1","专技岗","专技12级",3,"社会人员","北京","35周岁及以下","本科及以上","取得相应学位","中国语言文学、学科教学（语文）、汉语国际教育、课程与教学论","中国语言文学类","二级教师及以上","1年及以上","不限","取得相应学科高级中学教师资格证书；具有中级职称或获得区级及以上骨干教师称号的，年龄可放宽到40周岁及以下；具有高级职称或获得市级及以上骨干教师称号的，年龄可放宽到45周岁及以下","李老师\n66024247","西城区南横西街94号"]
[null,118,"北京市第一六一中学","全额事业","数学教师","专技岗","专技13级",1,"应届毕业生","不限","30周岁及以下","硕士研究生及以上","取得相应学位","学科教学（数学）、数学",null,"不限","不限","不限","取得相应学科高级中学教师资格证书","李老师\n66024247","西城区南横西街94号"]
[null,119,"北京市第一六一中学","全额事业","数学教师1","专技岗","专技12级",1,"社会人员","北京","35周岁及以下","本科及以上","取得相应学位","学科教学（数学）、数学","数学类","二级教师及以上","1年及以上","不限","取得相应学科高级中学教师资格证书；具有中级职称或获得区级及以上骨干教师称号的，年龄可放宽到40周岁及以下；具有高级职称或获得市级及以上骨干教师称号的，年龄可放宽到45周岁及以下","李老师\n66024247","西城区南横西街94号"]
[null,120,"北京市第一六一中学","全额事业","英语教师","专技岗","专技13级",1,"应届毕业生","不限","30周岁及以下","硕士研究生及以上","取得相应学位","学科教学（英语）、英语语言文学、英语笔译、英语口译",null,"不限","不限","不限","取得相应学科高级中学教师资格证书","李老师\n66024247","西城区南横西街94号"]
[null,121,"北京市第一六一中学","全额事业","英语教师1","专技岗","专技12级",1,"社会人员","北京","35周岁及以下","本科及以上","取得相应学位","学科教学（英语）、英语语言文学、英语笔译、英语口译","英语、翻译","二级教师及以上","1年及以上","不限","取得相应学科高级中学教师资格证书；具有中级职称或获得区级及以上骨干教师称号的，年龄可放宽到40周岁及以下；具有高级职称或获得市级及以上骨干教师称号的，年龄可放宽到45周岁及以下","李老师\n66024247","西城区南横西街94号"]
[null,122,"北京市第一六一中学","全额事业","心理教师","专技岗","专技12级",1,"应届毕业生或社会人员","北京","35周岁及以下","本科及以上","取得相应学位","心理学、心理健康教育、应用心理、应用心理学","心理学类","二级教师及以上","1年及以上","不限","取得相应学科高级中学教师资格证书；本科须为心理学相关专业；应届毕业生职称及专业工作年限不限，年龄为30周岁及以下，具有硕士研究生以上学历并取得相应学位，所聘岗位等级为专技13级；社会人员具有中级职称或获得区级及以上骨干教师称号的，年龄可放宽到40周岁及以下；具有高级职称或获得市级及以上骨干教师称号的，年龄可放宽到45周岁及以下","李老师\n66024247","西城区南横西街94号"]
[{"$f":"MAX(A$5:A127)+1","v":19},123,"北京市第一六一中学分校","全额事业","语文教师","专技岗","专技13级",1,"应届毕业生","不限","30周岁及以下","硕士研究生及以上","取得相应学位","语言学及应用语言学、汉语言文字学、中国古代文学、中国现当代文学、比较文学与世界文学、学科教学（语文）",null,"不限","不限","不限","取得相应学科中学教师资格证书","孙老师\n68524563","西城区月坛北街18号"]
[null,124,"北京市第一六一中学分校","全额事业","语文教师1","专技岗","专技13级",1,"应届毕业生","北京","30周岁及以下","本科及以上","取得相应学位","语言学及应用语言学、汉语言文字学、中国古代文学、中国现当代文学、比较文学与世界文学、学科教学（语文）","汉语言文学、汉语言、应用语言学、中国语言与文化","不限","不限","不限","取得相应学科中学教师资格证书","孙老师\n68524563","西城区月坛北街18号"]
[null,125,"北京市第一六一中学分校","全额事业","数学教师","专技岗","专技13级",1,"应届毕业生","不限","30周岁及以下","硕士研究生及以上","取得相应学位","基础数学、应用数学、学科教学（数学）",null,"不限","不限","不限","取得相应学科中学教师资格证书","孙老师\n68524563","西城区月坛北街18号"]
[null,126,"北京市第一六一中学分校","全额事业","英语教师","专技岗","专技13级",1,"应届毕业生","不限","30周岁及以下","硕士研究生及以上","取得相应学位","英语语言文学、学科教学（英语）",null,"不限","不限","不限","取得相应学科中学教师资格证书","孙老师\n68524563","西城区月坛北街18号"]
[null,127,"北京市第一六一中学分校","全额事业","历史教师","专技岗","专技13级",1,"应届毕业生","北京","30周岁及以下","本科及以上","取得相应学位","中国史、世界史、学科教学（历史）","历史学、世界史","不限","不限","不限","取得相应学科中学教师资格证书","孙老师\n68524563","西城区月坛北街18号"]
[null,128,"北京市第一六一中学分校","全额事业","地理教师","专技岗","专技13级",1,"应届毕业生","不限","30周岁及以下","硕士研究生及以上","取得相应学位","自然地理学、人文地理学、学科教学（地理）",null,"不限","不限","不限","取得相应学科中学教师资格证书","孙老师\n68524563","西城区月坛北街18号"]
[{"$f":"MAX(A$5:A133)+1","v":20},129,"北京师范大学实验二龙路中学","全额事业","物理教师","专技岗","专技13级",1,"应届毕业生","不限","30周岁及以下","博士研究生","取得相应学位","凝聚态物理、理论物理",null,"不限","不限","不限","取得相应学科高级中学教师资格证书","孙老师\n66020463","西城区大木仓胡同39号"]
[null,130,"北京师范大学实验二龙路中学","全额事业","政治教师","专技岗","专技10级",1,"社会人员","北京","35周岁及以下","硕士研究生","取得相应学位","课程与教学论、学科教学（思政）",null,"一级教师","5年及以上","不限","取得相应学科高级中学教师资格证书","孙老师\n66020463","西城区大木仓胡同39号"]
[{"$f":"MAX(A$5:A135)+1","v":21},131,"北京市鲁迅中学","全额事业","数学教师","专技岗","专技13级",5,"应届毕业生","北京","30周岁及以下","本科及以上","取得相应学位","学科教学（数学）、数学","数学类","不限","不限","不限","取得相应学科高级中学教师资格证书","李老师\n15601292671\n66035483","西城区新文化街45号"]
[null,132,"北京市鲁迅中学","全额事业","英语教师","专技岗","专技13级",1,"应届毕业生","北京","30周岁及以下","本科及以上","取得相应学位","学科教学（英语）、英语语言文学、英语笔译、英语口译","英语、翻译","不限","不限","不限","取得相应学科高级中学教师资格证书","李老师\n15601292671\n66035483","西城区新文化街45号"]
[null,133,"北京市鲁迅中学","全额事业","生物教师","专技岗","专技13级",1,"应届毕业生","北京","30周岁及以下","本科及以上","取得相应学位","学科教学（生物）、生物学","生物科学类","不限","不限","不限","取得相应学科高级中学教师资格证书","李老师\n15601292671\n66035483","西城区新文化街45号"]
[{"$f":"MAX(A$5:A138)+1","v":22},134,"北京教育学院附属中学","全额事业","数学教师","专技岗","专技12级",1,"社会人员","北京","35周岁及以下","本科及以上","取得相应学位","学科教学（数学）、数学","数学与应用数学、数理基础科学","二级教师","3年及以上","不限","取得相应学科中学教师资格证书","范老师\n62252385","西城区新街口四条48号"]
[null,135,"北京教育学院附属中学","全额事业","英语教师","专技岗","专技13级",1,"应届毕业生或社会人员","北京","35周岁及以下","本科及以上","取得相应学位","学科教学（英语）、英语语言文学","英语、翻译","不限","不限","不限","取得相应学科高级中学教师资格证书；取得全国高校英语专业八级考试证书；应届毕业生年龄为30周岁及以下","范老师\n62252385","西城区新街口四条48号"]
[null,136,"北京教育学院附属中学","全额事业","政治教师","专技岗","专技12级",1,"社会人员","北京","35周岁及以下","硕士研究生","取得相应学位","学科教学（思政）、思想政治教育",null,"二级教师","3年及以上","中共党员","取得相应学科高级中学教师资格证书","范老师\n62252385","西城区新街口四条48号"]
[{"$f":"MAX(A$5:A141)+1","v":23},137,"北京市月坛中学","全额事业","语文教师","专技岗","专技13级",1,"应届毕业生","北京","30周岁及以下","硕士研究生及以上","取得相应学位","中国语言文学、 学科教学（语文）",null,"不限","不限","不限","取得相应学科高级中学教师资格证书；博士研究生年龄可放宽到35周岁及以下","宋老师\n68021902-8024","西城区南礼士路二条1号"]
[{"$f":"MAX(A$5:A142)+1","v":24},138,"北京师范大学第二附属中学西城实验学校","全额事业","数学教师","专技岗","专技13级",1,"应届毕业生","不限","30周岁及以下","硕士研究生及以上","取得相应学位","学科教学（数学）、数学",null,"不限","不限","不限","取得相应学科高级中学教师资格证书；博士研究生年龄可放宽到35周岁及以下","王老师\n13641058008","西城区安德路116号"]
[null,139,"北京师范大学第二附属中学西城实验学校","全额事业","数学教师","专技岗","专技13级",1,"应届毕业生","北京","30周岁及以下","本科及以上","取得相应学位","学科教学（数学）、数学","数学类","不限","不限","不限","取得相应学科高级中学教师资格证书","王老师\n13641058008","西城区安德路116号"]
[null,140,"北京师范大学第二附属中学西城实验学校","全额事业","英语教师","专技岗","专技13级",1,"应届毕业生","不限","30周岁及以下","硕士研究生及以上","取得相应学位","学科教学（英语）、英语语言文学、外国语言学及应用语言学、英语笔译、英语口译",null,"不限","不限","不限","取得相应学科高级中学教师资格证书；取得全国高校英语专业八级考试证书；博士研究生年龄可放宽到35周岁及以下","王老师\n13641058008","西城区安德路116号"]
[{"$f":"MAX(A$5:A145)+1","v":25},141,"北京市第十三中学分校","全额事业","语文教师","专技岗","专技13级",1,"应届毕业生","北京","30周岁及以下","硕士研究生","取得相应学位","中国语言文学、课程与教学论、学科教学（语文）、汉语国际教育",null,"不限","不限","不限","取得相应学科中学教师资格证书","张老师\n56916145","西城区西绦胡同59号"]
[null,142,"北京市第十三中学分校","全额事业","语文教师1","专技岗","专技13级",1,"应届毕业生","不限","30周岁及以下","硕士研究生","取得相应学位","中国语言文学、课程与教学论、学科教学（语文）、汉语国际教育",null,"不限","不限","不限","取得相应学科中学教师资格证书","张老师\n56916145","西城区西绦胡同59号"]
[null,143,"北京市第十三中学分校","全额事业","语文教师2","专技岗","专技12级",1,"社会人员","北京","35周岁及以下","本科及以上","取得相应学位","中国语言文学、课程与教学论、学科教学（语文）","中国语言文学类","二级教师","1年及以上","不限","取得相应学科中学教师资格证书","张老师\n56916145","西城区西绦胡同59号"]
[null,144,"北京市第十三中学分校","全额事业","数学教师","专技岗","专技13级",1,"应届毕业生","北京","30周岁及以下","硕士研究生","取得相应学位","数学、课程与教学论、学科教学（数学）",null,"不限","不限","不限","取得相应学科中学教师资格证书","张老师\n56916145","西城区西绦胡同59号"]
[null,145,"北京市第十三中学分校","全额事业","数学教师1","专技岗","专技13级",1,"应届毕业生","不限","30周岁及以下","硕士研究生","取得相应学位","数学、课程与教学论、学科教学（数学）",null,"不限","不限","不限","取得相应学科中学教师资格证书","张老师\n56916145","西城区西绦胡同59号"]
[null,146,"北京市第十三中学分校","全额事业","数学教师2","专技岗","专技12级",1,"社会人员","北京","35周岁及以下","本科及以上","取得相应学位","课程与教学论、数学、学科教学（数学）","数学类","二级教师","1年及以上","不限","取得相应学科中学教师资格证书","张老师\n56916145","西城区西绦胡同59号"]
[null,147,"北京市第十三中学分校","全额事业","英语教师","专技岗","专技13级",2,"应届毕业生","北京","30周岁及以下","硕士研究生","取得相应学位","英语语言文学、英语笔译、英语口译、学科教学（英语）、外国语言文学",null,"不限","不限","不限","取得相应学科中学教师资格证书；外国语言文学专业需取得全国高校英语专业八级考试证书","张老师\n56916145","西城区西绦胡同59号"]
[null,148,"北京市第十三中学分校","全额事业","英语教师1","专技岗","专技13级",1,"应届毕业生","不限","30周岁及以下","硕士研究生","取得相应学位","英语语言文学、英语笔译、英语口译、学科教学（英语）、外国语言文学",null,"不限","不限","不限","取得相应学科中学教师资格证书；外国语言文学专业需取得全国高校英语专业八级考试证书","张老师\n56916145","西城区西绦胡同59号"]
[null,149,"北京市第十三中学分校","全额事业","英语教师2","专技岗","专技13级",2,"社会人员","北京","35周岁及以下","硕士研究生","取得相应学位","英语语言文学、英语笔译、英语口译、学科教学（英语）、外国语言文学",null,"不限","1年及以上","不限","取得相应学科中学教师资格证书；外国语言文学专业需取得全国高校英语专业八级考试证书","张老师\n56916145","西城区西绦胡同59号"]
[null,150,"北京市第十三中学分校","全额事业","物理教师","专技岗","专技13级",1,"应届毕业生","北京","30周岁及以下","硕士研究生","取得相应学位","物理学、学科教学（物理）、地球物理学",null,"不限","不限","不限","取得相应学科中学教师资格证书","张老师\n56916145","西城区西绦胡同59号"]
[null,151,"北京市第十三中学分校","全额事业","物理教师1","专技岗","专技12级",1,"社会人员","北京","35周岁及以下","本科及以上","取得相应学位","物理学、学科教学（物理）、地球物理学","物理学类、力学类","二级教师","1年及以上","不限","取得相应学科中学教师资格证书","张老师\n56916145","西城区西绦胡同59号"]
[null,152,"北京市第十三中学分校","全额事业","道德与法治教师","专技岗","专技13级",1,"应届毕业生","北京","30周岁及以下","硕士研究生","取得相应学位","思想政治教育、学科教学（思政）、国际关系",null,"不限","不限","不限","取得相应学科中学教师资格证书","张老师\n56916145","西城区西绦胡同59号"]
[{"$f":"MAX(A$5:A157)+1","v":26},153,"北京市三帆中学","全额事业","语文教师","专技岗","专技12级",1,"社会人员","北京","35周岁及以下","硕士研究生","取得相应学位","中国语言文学、学科教学（语文）",null,"二级教师","3年及以上","不限","取得相应学科高级中学教师资格证书；社会人员具有相应学科教育教学工作经历","王老师\n62018709","西城区新风街7号"]
[null,154,"北京市三帆中学","全额事业","英语教师","专技岗","专技13级",1,"应届毕业生","北京","30周岁及以下","硕士研究生及以上","取得相应学位","外国语言学及应用语言学、英语语言文学",null,"不限","不限","不限","取得相应学科高级中学教师资格证书；取得全国高校英语专业八级考试证书","王老师\n62018709","西城区新风街7号"]
[null,155,"北京市三帆中学","全额事业","英语教师1","专技岗","专技10级",1,"社会人员","北京","35周岁及以下","硕士研究生","取得相应学位","外国语言学及应用语言学、英语语言文学",null,"一级教师","5年及以上","不限","取得相应学科高级中学教师资格证书；取得全国高校英语专业八级考试证书","王老师\n62018709","西城区新风街7号"]
[null,156,"北京市三帆中学","全额事业","物理教师","专技岗","专技13级",1,"应届毕业生","不限","30周岁及以下","硕士研究生","取得相应学位","学科教学（物理）、课程与教学论",null,"不限","不限","不限","取得相应学科高级中学教师资格证书","王老师\n62018709","西城区新风街7号"]
[null,157,"北京市三帆中学","全额事业","道德与法治教师","专技岗","专技13级",1,"应届毕业生","北京","30周岁及以下","硕士研究生","取得相应学位","学科教学（思政）、思想政治教育",null,"不限","不限","不限","取得相应学科高级中学教师资格证书","王老师\n62018709","西城区新风街7号"]
[null,158,"北京市三帆中学","全额事业","道德与法治教师1","专技岗","专技12级",1,"社会人员","北京","35周岁及以下","本科","取得相应学位",null,"哲学、逻辑学","二级教师","3年及以上","不限","取得相应学科高级中学教师资格证书","王老师\n62018709","西城区新风街7号"]
[null,159,"北京市三帆中学","全额事业","体育与健康教师","专技岗","专技13级",1,"应届毕业生","北京","25周岁及以下","本科","取得相应学位",null,"体育教育、运动训练","不限","不限","不限","取得相应学科高级中学教师资格证书","王老师\n62018709","西城区新风街7号"]
[null,160,"北京市三帆中学","全额事业","体育与健康教师1","专技岗","专技13级",1,"应届毕业生","不限","30周岁及以下","硕士研究生","取得相应学位","学科教学（体育）、体育教学",null,"不限","不限","不限","取得相应学科高级中学教师资格证书","王老师\n62018709","西城区新风街7号"]
[null,161,"北京市三帆中学","全额事业","美术教师","专技岗","专技13级",1,"应届毕业生","北京","30周岁及以下","硕士研究生","取得相应学位","设计学",null,"不限","不限","不限","取得相应学科高级中学教师资格证书","王老师\n62018709","西城区新风街7号"]
[{"$f":"MAX(A$5:A166)+1","v":27},162,"北京市西城外国语学校","全额事业","语文教师","专技岗","专技13级",2,"应届毕业生","北京","30周岁及以下","硕士研究生","取得相应学位","中国语言文学、学科教学（语文）",null,"不限","不限","不限","取得相应学科高级中学教师资格证书","董老师\n66154847","西城区百万庄大街37号"]
[null,163,"北京市西城外国语学校","全额事业","数学教师","专技岗","专技13级",4,"应届毕业生","北京","30周岁及以下","硕士研究生","取得相应学位","数学、学科教学（数学）",null,"不限","不限","不限","取得相应学科高级中学教师资格证书","董老师\n66154847","西城区百万庄大街37号"]
[null,164,"北京市西城外国语学校","全额事业","英语教师","专技岗","专技13级",2,"应届毕业生","北京","30周岁及以下","硕士研究生","取得相应学位","英语语言文学、学科教学（英语）、外国语言学及应用语言学",null,"不限","不限","不限","取得相应学科高级中学教师资格证书；取得全国高校英语专业八级考试证书","董老师\n66154847","西城区百万庄大街37号"]
[null,165,"北京市西城外国语学校","全额事业","物理教师","专技岗","专技13级",1,"应届毕业生","北京","30周岁及以下","硕士研究生","取得相应学位","物理学、学科教学（物理）",null,"不限","不限","不限","取得相应学科高级中学教师资格证书","董老师\n66154847","西城区百万庄大街37号"]
[null,166,"北京市西城外国语学校","全额事业","政治教师","专技岗","专技13级",2,"应届毕业生","北京","30周岁及以下","硕士研究生","取得相应学位","马克思主义理论、学科教学（思政）",null,"不限","不限","不限","取得相应学科高级中学教师资格证书","董老师\n66154847","西城区百万庄大街37号"]
[null,167,"北京市西城外国语学校","全额事业","体育与健康教师","专技岗","专技13级",2,"应届毕业生","北京","25周岁及以下","本科","取得相应学位",null,"运动训练、体育教育","不限","不限","不限","取得相应学科高级中学教师资格证书","董老师\n66154847","西城区百万庄大街37号"]
[null,168,"北京市西城外国语学校","全额事业","德语教师","专技岗","专技13级",1,"应届毕业生","北京","30周岁及以下","硕士研究生","取得相应学位","德语语言文学、德语口译",null,"不限","不限","不限","取得相应学科中学教师资格证书","董老师\n66154847","西城区百万庄大街37号"]
[{"$f":"MAX(A$5:A173)+1","v":28},169,"北京市铁路第二中学（小学）","全额事业","英语教师","专技岗","专技13级",1,"应届毕业生","北京","25周岁及以下","本科","取得相应学位",null,"英语、翻译","不限","不限","不限","取得相应学科小学教师资格证书","孙老师\n68010973","西城区三里河东路9号"]
[{"$f":"MAX(A$5:A174)+1","v":29},170,"北京市铁路第二中学（中学）","全额事业","语文教师","专技岗","专技13级",2,"应届毕业生","北京","30周岁及以下","本科及以上","取得相应学位","学科教学（语文）、中国古代文学、中国现当代文学、比较文学与世界文学、中国语言文学学科","汉语言文学、汉语言","不限","不限","不限","取得相应学科高级中学教师资格证书","孙老师\n68010973","西城区三里河东路9号"]
[null,171,"北京市铁路第二中学（中学）","全额事业","数学教师","专技岗","专技13级",1,"应届毕业生","北京","25周岁及以下","本科","取得相应学位",null,"数学与应用数学、数理基础科学","不限","不限","不限","取得相应学科高级中学教师资格证书","孙老师\n68010973","西城区三里河东路9号"]
[null,172,"北京市铁路第二中学（中学）","全额事业","英语教师","专技岗","专技13级",1,"应届毕业生或社会人员","北京","30周岁及以下","本科及以上","取得相应学位","学科教学（英语）、英语语言文学","英语、翻译","不限","不限","不限","取得相应学科高级中学教师资格证书；取得全国高校英语专业八级考试证书","孙老师\n68010973","西城区三里河东路9号"]
[null,173,"北京市铁路第二中学（中学）","全额事业","物理教师","专技岗","专技13级",1,"应届毕业生","北京","30周岁及以下","本科及以上","取得相应学位","学科教学（物理）、理论物理","物理学类","不限","不限","不限","取得相应学科高级中学教师资格证书","孙老师\n68010973","西城区三里河东路9号"]
[null,174,"北京市铁路第二中学（中学）","全额事业","生物教师","专技岗","专技13级",1,"应届毕业生","北京","30周岁及以下","硕士研究生","取得相应学位","动物学、微生物学",null,"不限","不限","不限","取得相应学科高级中学教师资格证书","孙老师\n68010973","西城区三里河东路9号"]
[null,175,"北京市铁路第二中学（中学）","全额事业","地理教师","专技岗","专技13级",1,"应届毕业生","北京","30周岁及以下","本科及以上","取得相应学位","学科教学（地理）、地理学","地理科学、自然地理与资源环境","不限","不限","不限","取得相应学科高级中学教师资格证书","孙老师\n68010973","西城区三里河东路9号"]
[null,176,"北京市铁路第二中学（中学）","全额事业","音乐教师","专技岗","专技13级",1,"应届毕业生","北京","30周岁及以下","本科及以上","取得相应学位","学科教学（音乐）、音乐学","音乐学、音乐表演","不限","不限","不限","取得相应学科高级中学教师资格证书","孙老师\n68010973","西城区三里河东路9号"]
[null,177,"北京市铁路第二中学（中学）","全额事业","体育与健康教师","专技岗","专技13级",1,"应届毕业生","北京","30周岁及以下","本科及以上","取得相应学位","学科教学（体育）、体育教学、运动训练","体育教育、运动训练","不限","不限","不限","取得相应学科高级中学教师资格证书","孙老师\n68010973","西城区三里河东路9号"]
[{"$f":"MAX(A$5:A182)+1","v":30},178,"北京市徐悲鸿中学","全额事业","历史教师","专技岗","专技13级",1,"应届毕业生","北京","30周岁及以下","本科及以上","取得相应学位","历史学","历史学类","不限","不限","不限","取得相应学科高级中学教师资格证书","李老师\n63020361","西城区右安门内西街甲10号"]
[{"$f":"MAX(A$5:A183)+1","v":31},179,"北京师范大学实验华夏女子中学","全额事业","语文教师","专技岗","专技13级",1,"应届毕业生","不限","30周岁及以下","硕士研究生及以上","取得相应学位","学科教学（语文）、中国语言文学",null,"不限","不限","不限","取得相应学科中学教师资格证书；博士研究生年龄可放宽到35周岁及以下；能胜任班主任工作","张老师\n63452045","西城区红莲中里12号"]
[null,180,"北京师范大学实验华夏女子中学","全额事业","数学教师","专技岗","专技13级",2,"应届毕业生","不限","30周岁及以下","硕士研究生及以上","取得相应学位","学科教学（数学）、基础数学、计算数学、概率论与数理统计、应用数学",null,"不限","不限","不限","取得相应学科中学教师资格证书；博士研究生年龄可放宽到35周岁及以下；能胜任班主任工作","张老师\n63452045","西城区红莲中里12号"]
[null,181,"北京师范大学实验华夏女子中学","全额事业","英语教师","专技岗","专技13级",1,"应届毕业生","不限","30周岁及以下","硕士研究生及以上","取得相应学位","学科教学（英语）、外国语言学及应用语言学、英语语言文学、英语口译、英语笔译",null,"不限","不限","不限","取得相应学科中学教师资格证书；外国语言学及应用语言学专业需取得全国高校英语专业八级考试证书；博士研究生年龄可放宽到35周岁及以下；能胜任班主任工作","张老师\n63452045","西城区红莲中里12号"]
[null,182,"北京师范大学实验华夏女子中学","全额事业","物理教师","专技岗","专技13级",1,"应届毕业生","不限","30周岁及以下","硕士研究生及以上","取得相应学位","学科教学（物理）、物理学",null,"不限","不限","不限","取得相应学科中学教师资格证书；博士研究生年龄可放宽到35周岁及以下；能胜任班主任工作","张老师\n63452045","西城区红莲中里12号"]
[{"$f":"MAX(A$5:A187)+1","v":32},183,"北京市育才学校（中学）","全额事业","数学教师","专技岗","专技13级",1,"应届毕业生或社会人员","北京","30周岁及以下","本科及以上","取得相应学位","数学、学科教学（数学）","数学类","不限","不限","不限","取得相应学科中学教师资格证书","黄老师\n15330039645","西城区东经路21号"]
[null,184,"北京市育才学校（中学）","全额事业","物理教师","专技岗","专技13级",1,"应届毕业生或社会人员","北京","30周岁及以下","本科及以上","取得相应学位","物理学、学科教学（物理）","物理学类","不限","不限","不限","取得相应学科中学教师资格证书","黄老师\n15330039645","西城区东经路21号"]
[{"$f":"MAX(A$5:A189)+1","v":33},185,"北京市回民学校","全额事业","语文教师","专技岗","专技12级",2,"应届毕业生或社会人员","北京","35周岁及以下","本科及以上","取得相应学位","中国语言文学、学科教学（语文）","中国语言文学类","二级教师及以上","1年及以上","不限","取得相应学科高级中学教师资格证书；应届毕业生职称及专业工作年限不限，年龄为30周岁及以下，所聘岗位等级为专技13级，博士研究生年龄可放宽到35周岁及以下；具有中级职称或获得区级及以上骨干教师称号的，年龄可放宽到40周岁及以下","吕老师\n63186254","西城区广内大街225号"]
[null,186,"北京市回民学校","全额事业","数学教师","专技岗","专技12级",2,"应届毕业生或社会人员","北京","35周岁及以下","本科及以上","取得相应学位","数学、学科教学（数学）","数学类","二级教师及以上","1年及以上","不限","取得相应学科高级中学教师资格证书；应届毕业生职称及专业工作年限不限，年龄为30周岁及以下，所聘岗位等级为专技13级，博士研究生年龄可放宽到35周岁及以下；具有中级职称或获得区级及以上骨干教师称号的，年龄可放宽到40周岁及以下","吕老师\n63186254","西城区广内大街225号"]
[null,187,"北京市回民学校","全额事业","数学教师1","专技岗","专技13级",1,"应届毕业生","不限","30周岁及以下","硕士研究生及以上","取得相应学位","数学、学科教学（数学）",null,"不限","不限","不限","取得相应学科高级中学教师资格证书；博士研究生年龄可放宽到35周岁及以下","吕老师\n63186254","西城区广内大街225号"]
[null,188,"北京市回民学校","全额事业","英语教师","专技岗","专技12级",2,"应届毕业生或社会人员","北京","35周岁及以下","本科及以上","取得相应学位","英语语言文学、外国语言学及应用语言学、学科教学（英语）、英语笔译","英语、翻译","二级教师及以上","1年及以上","不限","取得相应学科高级中学教师资格证书；应届毕业生职称及专业工作年限不限，年龄为30周岁及以下，所聘岗位等级为专技13级，博士研究生年龄可放宽到35周岁及以下；具有中级职称或获得区级及以上骨干教师称号的，年龄可放宽到40周岁及以下；外国语言学及应用语言学专业需取得全国高校英语专业四级或八级考试证书","吕老师\n63186254","西城区广内大街225号"]
[null,189,"北京市回民学校","全额事业","英语教师1","专技岗","专技13级",1,"应届毕业生","不限","30周岁及以下","硕士研究生及以上","取得相应学位","英语语言文学、外国语言学及应用语言学、学科教学（英语）、英语笔译",null,"不限","不限","不限","取得相应学科高级中学教师资格证书；博士研究生年龄可放宽到35周岁及以下；外国语言学及应用语言学专业需取得全国高校英语专业四级或者八级证书","吕老师\n63186254","西城区广内大街225号"]
[null,190,"北京市回民学校","全额事业","物理教师","专技岗","专技12级",2,"应届毕业生或社会人员","北京","35周岁及以下","本科及以上","取得相应学位","物理学、地球物理学、学科教学（物理）","物理学类、地球物理学类、力学类","二级教师及以上","1年及以上","不限","取得相应学科高级中学教师资格证书；应届毕业生职称及专业工作年限不限，年龄为30周岁及以下，所聘岗位等级为专技13级，博士研究生年龄可放宽到35周岁及以下；具有中级职称或获得区级及以上骨干教师称号的，年龄可放宽到40周岁及以下","吕老师\n63186254","西城区广内大街225号"]
[null,191,"北京市回民学校","全额事业","物理教师1","专技岗","专技10级",1,"社会人员","北京","40周岁及以下","硕士研究生及以上","取得相应学位","物理学",null,"一级教师","5年及以上","不限","取得相应学科高级中学教师资格证书","吕老师\n63186254","西城区广内大街225号"]
[null,192,"北京市回民学校","全额事业","生物教师","专技岗","专技13级",1,"应届毕业生","北京","30周岁及以下","硕士研究生及以上","取得相应学位","生物学、生态学",null,"不限","不限","不限","取得相应学科高级中学教师资格证书","吕老师\n63186254","西城区广内大街225号"]
[null,193,"北京市回民学校","全额事业","道德与法治教师","专技岗","专技12级",1,"应届毕业生或社会人员","北京","35周岁及以下","本科及以上","取得相应学位","哲学、政治学、马克思主义理论、学科教学（思政）","哲学类、政治学类、马克思主义理论类","二级教师及以上","1年及以上","不限","取得相应学科高级中学教师资格证书；应届毕业生职称及专业工作年限不限，年龄为30周岁及以下，所聘岗位等级为专技13级，博士研究生年龄可放宽到35周岁及以下；具有中级职称或获得区级及以上骨干教师称号的，年龄可放宽到40周岁及以下","吕老师\n63186254","西城区广内大街225号"]
[null,194,"北京市回民学校","全额事业","历史教师","专技岗","专技12级",1,"应届毕业生或社会人员","北京","35周岁及以下","本科及以上","取得相应学位","历史学、中国史、世界史、学科教学（历史）","历史学类","二级教师及以上","1年及以上","不限","取得相应学科高级中学教师资格证书；应届毕业生职称及专业工作年限不限，年龄为30周岁及以下，所聘岗位等级为专技13级，博士研究生年龄可放宽到35周岁及以下；具有中级职称或获得区级及以上骨干教师称号的，年龄可放宽到40周岁及以下","吕老师\n63186254","西城区广内大街225号"]
[null,195,"北京市回民学校","全额事业","美术教师","专技岗","专技13级",1,"应届毕业生","北京","30周岁及以下","本科及以上","取得相应学位","美术学、美术、学科教学（美术）","美术学类","不限","不限","不限","取得相应学科高级中学教师资格证书","吕老师\n63186254","西城区广内大街225号"]
[{"$f":"MAX(A$5:A200)+1","v":34},196,"北京市宣武外国语实验学校","全额事业","语文教师","专技岗","专技12级",2,"应届毕业生或社会人员","北京","35周岁及以下","本科及以上","取得相应学位","学科教学（语文）、中国古代文学、中国现当代文学、文艺学","汉语言文学、汉语言、中国语言与文化、中国语言文学类专业","二级教师及以上","1年及以上","不限","取得相应学科高级中学教师资格证书；应届毕业生职称及专业工作年限不限，年龄为30周岁及以下，所聘岗位等级为专技13级；社会人员具有相应学科教育教学工作经历；具有中级职称或获得区级及以上骨干教师称号的，年龄可放宽到40周岁及以下；能胜任班主任工作","白老师\n63522858","西城区莲花河胡同4号"]
[null,197,"北京市宣武外国语实验学校","全额事业","语文教师1","专技岗","专技13级",1,"应届毕业生","不限","30周岁及以下","硕士研究生及以上","取得相应学位","学科教学（语文）、中国古代文学、中国现当代文学",null,"不限","不限","不限","取得相应学科高级中学教师资格证书；博士研究生年龄可放宽到35周岁及以下；能胜任班主任工作","白老师\n63522858","西城区莲花河胡同4号"]
[null,198,"北京市宣武外国语实验学校","全额事业","数学教师","专技岗","专技12级",2,"应届毕业生或社会人员","北京","35周岁及以下","本科及以上","取得相应学位","学科教学（数学）、数学","数学类","二级教师及以上","1年及以上","不限","取得相应学科高级中学教师资格证书；应届毕业生职称及专业工作年限不限，年龄为30周岁及以下，所聘岗位等级为专技13级；社会人员具有相应学科教育教学工作经历；具有中级职称或获得区级及以上骨干教师称号的，年龄可放宽到40周岁及以下；能胜任班主任工作","白老师\n63522858","西城区莲花河胡同4号"]
[null,199,"北京市宣武外国语实验学校","全额事业","数学教师1","专技岗","专技13级",1,"应届毕业生","不限","30周岁及以下","硕士研究生及以上","取得相应学位","学科教学（数学）、数学",null,"不限","不限","不限","取得相应学科高级中学教师资格证书；博士研究生年龄可放宽到35周岁及以下；能胜任班主任工作","白老师\n63522858","西城区莲花河胡同4号"]
[null,200,"北京市宣武外国语实验学校","全额事业","英语教师","专技岗","专技12级",2,"应届毕业生或社会人员","北京","35周岁及以下","本科及以上","取得相应学位","学科教学（英语）、英语语言文学、外国语言学及应用语言学、外国语言文学学科、英语笔译、英语口译","英语、翻译","二级教师及以上","1年及以上","不限","取得相应学科高级中学教师资格证书；应届毕业生职称及专业工作年限不限，年龄为30周岁及以下，所聘岗位等级为专技13级；社会人员具有相应学科教育教学工作经历；具有中级职称或获得区级及以上骨干教师称号的，年龄可放宽到40周岁及以下；能胜任班主任工作；取得全国高校英语专业四级或八级考试证书","白老师\n63522858","西城区莲花河胡同4号"]
[null,201,"北京市宣武外国语实验学校","全额事业","心理教师","专技岗","专技12级",1,"应届毕业生或社会人员","北京","35周岁及以下","本科及以上","取得相应学位","心理学、心理健康教育、应用心理","心理学类","二级教师","1年及以上","不限","取得相应学科高级中学教师资格证书；应届毕业生职称及专业工作年限不限，年龄为30周岁及以下，所聘岗位等级为专技13级；社会人员具有相应学科教育教学工作经历；具有中级职称或获得区级及以上骨干教师称号的，年龄可放宽到40周岁及以下；能胜任班主任工作","白老师\n63522858","西城区莲花河胡同4号"]
[{"$f":"MAX(A$5:A206)+1","v":35},202,"北京市西城区德胜中学","全额事业","语文教师","专技岗","专技10级",1,"社会人员","北京","40周岁及以下","硕士研究生及以上","取得相应学位","比较文学与世界文学、语言学及应用语言学",null,"一级教师","5年及以上","不限","取得相应学科中学教师资格证书","冯老师\n83259865-8061","西城区黄寺大街23号"]
[null,203,"北京市西城区德胜中学","全额事业","英语教师","专技岗","专技12级",1,"社会人员","北京","35周岁及以下","本科及以上","取得相应学位","英语口译、英语语言文学","英语、翻译","二级教师","3年及以上","不限","取得相应学科中学教师资格证书","冯老师\n83259865-8061","西城区黄寺大街23号"]
[null,204,"北京市西城区德胜中学","全额事业","道德与法治教师","专技岗","专技10级",1,"社会人员","北京","40周岁及以下","硕士研究生及以上","取得相应学位","马克思主义基本原理、思想政治教育、政治学学科、学科教学（思政）",null,"一级教师","5年及以上","不限","取得相应学科中学教师资格证书","冯老师\n83259865-8061","西城区黄寺大街23号"]
[{"$f":"MAX(A$5:A209)+1","v":36},205,"北京市西城区自忠小学","全额事业","信息技术教师","专技岗","专技13级",1,"应届毕业生","北京","25周岁及以下","本科","取得相应学位",null,"计算机科学与技术、软件工程","不限","不限","不限","取得相应学科教师资格证书","黄老师\n13581788032","西城区府右街丙27号"]
[{"$f":"MAX(A$5:A210)+1","v":37},206,"北京市第十三中学附属小学","全额事业","音乐教师","专技岗","专技13级",1,"应届毕业生","北京","25周岁及以下","本科及以上","取得相应学位","学科教学（音乐）、音乐学","音乐学、小学教育","不限","不限","不限","取得相应学科教师资格证书","律老师\n83282305","西城区西煤厂胡同7号"]
[{"$f":"MAX(A$5:A211)+1","v":38},207,"北京市西城区黄城根小学","全额事业","语文教师","专技岗","专技13级",1,"应届毕业生","北京","30周岁及以下","硕士研究生及以上","取得相应学位","学科教学（语文）、小学教育",null,"不限","不限","不限","取得相应学科教师资格证书","王老师\n66118588","西城区西黄城根北街3号"]
[null,208,"北京市西城区黄城根小学","全额事业","数学教师","专技岗","专技13级",1,"应届毕业生","北京","30周岁及以下","本科及以上","取得相应学位","学科教学（数学）、小学教育；数学","小学教育、数学类","不限","不限","不限","取得相应学科教师资格证书","王老师\n66118588","西城区西黄城根北街3号"]
[null,209,"北京市西城区黄城根小学","全额事业","英语教师","专技岗","专技13级",1,"应届毕业生","北京","30周岁及以下","本科及以上","取得相应学位","学科教学（英语）、外国语言文学、英语笔译、英语口译","小学教育、英语","不限","不限","不限","取得相应学科教师资格证书；取得全国高校英语专业八级考试证书","王老师\n66118588","西城区西黄城根北街3号"]
[null,210,"北京市西城区黄城根小学","全额事业","音乐教师","专技岗","专技13级",2,"应届毕业生","北京","30周岁及以下","本科及以上","取得相应学位","学科教学（音乐）、小学教育、音乐与舞蹈学、音乐","小学教育、音乐表演、音乐学、舞蹈表演、舞蹈学、舞蹈教育、音乐与舞蹈学类专业","不限","不限","不限","取得相应学科教师资格证书；博士研究生年龄可放宽到35周岁及以下","王老师\n66118588","西城区西黄城根北街3号"]
[null,211,"北京市西城区黄城根小学","全额事业","信息技术教师","专技岗","专技13级",1,"应届毕业生","北京","25周岁及以下","本科","取得相应学位",null,"小学教育、计算机类","不限","不限","不限","取得相应学科教师资格证书","王老师\n66118588","西城区西黄城根北街3号"]
[null,212,"北京市西城区黄城根小学","全额事业","科学教师","专技岗","专技13级",1,"应届毕业生","北京","30周岁及以下","本科及以上","取得相应学位","学科教学（物理）、学科教学（化学）、学科教学（生物）、小学教育；科学与技术教育","科学教育、小学教育、物理学类、化学类、生物科学类","不限","不限","不限","取得相应学科教师资格证书","王老师\n66118588","西城区西黄城根北街3号"]
[{"$f":"MAX(A$5:A217)+1","v":39},213,"北京市西城区育翔小学","全额事业","语文教师","专技岗","专技13级",1,"应届毕业生","不限","30周岁及以下","硕士研究生及以上","取得相应学位","汉语国际教育、课程与教学论、学科教学（语文）、小学教育、语言学及应用语言学",null,"不限","不限","不限","取得相应学科教师资格证书","黄老师\n62078232","西城区马甸南村乙14号"]
[null,214,"北京市西城区育翔小学","全额事业","音乐教师","专技岗","专技12级",1,"社会人员","北京","35周岁及以下","硕士研究生及以上","取得相应学位","音乐与舞蹈学",null,"二级教师","3年及以上","不限","取得相应学科教师资格证书","黄老师\n62078232","西城区马甸南村乙14号"]
[null,215,"北京市西城区育翔小学","全额事业","美术教师","专技岗","专技13级",1,"应届毕业生","北京","30周岁及以下","硕士研究生及以上","取得相应学位","小学教育、美术学",null,"不限","不限","不限","取得相应学科教师资格证书","黄老师\n62078232","西城区马甸南村乙14号"]
[{"$f":"MAX(A$5:A220)+1","v":40},216,"北京市西城区鸦儿胡同小学","全额事业","语文教师","专技岗","专技13级",1,"应届毕业生","北京","30周岁及以下","硕士研究生","取得相应学位","中国语言文学、小学教育、学科教学（语文）",null,"不限","不限","不限","取得相应学科教师资格证书","金老师\n13717553989","西城区鸦儿胡同25号"]
[{"$f":"MAX(A$5:A221)+1","v":41},217,"北京师范大学京师附小","全额事业","体育与健康教师","专技岗","专技13级",2,"应届毕业生或社会人员","北京","30周岁及以下","本科及以上","取得相应学位","体育学、体育","体育教育、运动训练、武术与民族传统体育、休闲体育","不限","不限","不限","取得相应学科教师资格证书","张老师\n66119918","西城区西四北四条47号"]
[{"$f":"MAX(A$5:A222)+1","v":42},218,"北京市西城区宏庙小学","全额事业","心理教师","专技岗","专技13级",1,"应届毕业生","北京","30周岁及以下","硕士研究生","取得相应学位","心理学、发展与教育心理学",null,"不限","不限","不限","取得相应学科教师资格证书","张老师\n66017637","西城区西单北大街宏庙胡同13号"]
[{"$f":"MAX(A$5:A223)+1","v":43},219,"北京市西城区华嘉小学","全额事业","语文教师","专技岗","专技13级",1,"应届毕业生","北京","30周岁及以下","本科及以上","取得相应学位","学科教学（语文）、小学教育、中国语言文学","中国语言文学类、小学教育","不限","不限","不限","取得相应学科教师资格证书","李老师\n66025995","西城区西廊下胡同34号"]
[null,220,"北京市西城区华嘉小学","全额事业","体育与健康教师","专技岗","专技13级",1,"应届毕业生","北京","30周岁及以下","本科及以上","取得相应学位","体育学、体育、学科教学（体育）","体育学类","不限","不限","不限","取得相应学科教师资格证书","李老师\n66025995","西城区西廊下胡同34号"]
[{"$f":"MAX(A$5:A225)+1","v":44},221,"北京第二实验小学","全额事业","科学教师","专技岗","专技10级",1,"应届毕业生或社会人员","北京","40周岁及以下","硕士研究生及以上","取得相应学位","小学教育、科学与技术教育、物理学、生物学、天文学、化学",null,"一级教师","5年及以上","不限","取得相应学科教师资格证书；应届毕业生职称及专业工作年限不限，年龄为30周岁及以下，所聘岗位等级为专技13级","刘老师\n13801322332","西城区新文化街111号"]
[{"$f":"MAX(A$5:A226)+1","v":45},222,"北京第二实验小学涭水河分校","全额事业","语文教师","专技岗","专技13级",1,"应届毕业生","北京","30周岁及以下","本科及以上","取得相应学位","中国语言文学、课程与教学论","汉语言文学、小学教育","不限","不限","不限","取得相应学科教师资格证书","韩老师\n13910778493","西城区受水河胡同45号"]
[{"$f":"MAX(A$5:A227)+1","v":46},223,"北京市西城区三里河第三小学","全额事业","语文教师","专技岗","专技13级",1,"应届毕业生","北京","25周岁及以下","本科","取得相应学位",null,"汉语言文学、小学教育","不限","不限","不限","取得相应学科教师资格证书；能胜任班主任工作","任老师\n68526079","西城区三里河三区36号"]
[null,224,"北京市西城区三里河第三小学","全额事业","数学教师","专技岗","专技13级",1,"应届毕业生","北京","25周岁及以下","本科","取得相应学位",null,"小学教育、数学与应用数学","不限","不限","不限","取得相应学科教师资格证书；能胜任班主任工作","任老师\n68526079","西城区三里河三区36号"]
[{"$f":"MAX(A$5:A229)+1","v":47},225,"北京市西城区育民小学","全额事业","语文教师","专技岗","专技13级",2,"应届毕业生","北京","30周岁及以下","本科及以上","取得相应学位","中国语言文学、课程与教学论、学科教学（语文）、小学教育","汉语言文学、小学教育","不限","不限","不限","取得相应学科教师资格证书","许老师\n13621197798","西城区真武庙头条8号"]
[null,226,"北京市西城区育民小学","全额事业","数学教师","专技岗","专技13级",2,"应届毕业生","北京","30周岁及以下","本科及以上","取得相应学位","数学、学科教学（数学）、小学教育","数学类、小学教育","不限","不限","不限","取得相应学科教师资格证书","许老师\n13621197798","西城区真武庙头条8号"]
[null,227,"北京市西城区育民小学","全额事业","数学教师1","专技岗","专技13级",1,"社会人员","北京","25周岁及以下","硕士研究生","取得相应学位","基础数学、学科教学（数学）",null,"不限","1年及以上","不限","取得相应学科教师资格证书","许老师\n13621197798","西城区真武庙头条8号"]
[null,228,"北京市西城区育民小学","全额事业","音乐教师","专技岗","专技13级",1,"应届毕业生","北京","30周岁及以下","本科及以上","取得相应学位","学科教学（音乐）、音乐学","音乐学、小学教育","不限","不限","不限","取得相应学科教师资格证书","许老师\n13621197798","西城区真武庙头条8号"]
[null,229,"北京市西城区育民小学","全额事业","心理教师","专技岗","专技13级",1,"应届毕业生","北京","30周岁及以下","本科及以上","取得相应学位","心理健康教育、应用心理学、应用心理","心理学、应用心理学","不限","不限","不限","取得相应学科教师资格证书","许老师\n13621197798","西城区真武庙头条8号"]
[{"$f":"MAX(A$5:A234)+1","v":48},230,"北京第二实验小学白云路分校","全额事业","语文教师","专技岗","专技13级",1,"应届毕业生","北京","25周岁及以下","本科","取得相应学位",null,"汉语言文学、小学教育","不限","不限","不限","取得相应学科教师资格证书","张老师\n18510152726","西城区白云路2号"]
[{"$f":"MAX(A$5:A235)+1","v":49},231,"北京市西城区阜成门外第一小学","全额事业","美术教师","专技岗","专技13级",1,"社会人员","北京","30周岁及以下","硕士研究生及以上","取得相应学位","艺术设计、设计艺术学",null,"不限","不限","不限","取得相应学科教师资格证书；能胜任班主任工作","李老师\n13701223143","西城区阜成门外大街甲10号"]
[{"$f":"MAX(A$5:A236)+1","v":50},232,"北京市西城区\n展览路第一小学","全额事业","语文教师","专技岗","专技13级",2,"应届毕业生","北京","25周岁及以下","本科","取得相应学位",null,"小学教育、汉语言文学","不限","不限","不限","取得相应学科教师资格证书","田老师\n68357767","西城区百万庄中里7号"]
[null,233,"北京市西城区\n展览路第一小学","全额事业","音乐教师","专技岗","专技13级",1,"应届毕业生","北京","25周岁及以下","本科","取得相应学位",null,"音乐学、音乐表演","不限","不限","不限","取得相应学科教师资格证书","田老师\n68357767","西城区百万庄中里7号"]
[{"$f":"MAX(A$5:A238)+1","v":51},234,"北京市西城外国语学校附属小学","全额事业","数学教师","专技岗","专技13级",1,"应届毕业生","北京","30周岁及以下","本科及以上","取得相应学位","学科教学（数学）、小学教育、基础数学、计算数学、应用数学","小学教育、数学与应用数学","不限","不限","不限","取得相应学科教师资格证书；能胜任班主任工作","郭老师\n13681050832","西城区北礼士路133号"]
[{"$f":"MAX(A$5:A239)+1","v":52},235,"北京第一实验小学","全额事业","语文教师","专技岗","专技13级",2,"应届毕业生","北京","30周岁及以下","本科及以上","取得相应学位","课程与教学论、汉语言文字学","汉语言文学、小学教育","不限","不限","不限","取得相应学科教师资格证书","邢老师\n63045651","西城区南新华街17号"]
[null,236,"北京第一实验小学","全额事业","数学教师","专技岗","专技13级",1,"应届毕业生","北京","30周岁及以下","本科及以上","取得相应学位","小学教育、应用数学","数学与应用数学、小学教育","不限","不限","不限","取得相应学科教师资格证书","邢老师\n63045651","西城区南新华街17号"]
[null,237,"北京第一实验小学","全额事业","心理教师","专技岗","专技13级",1,"应届毕业生","北京","30周岁及以下","硕士研究生","取得相应学位","应用心理学、心理健康教育、小学教育",null,"不限","不限","不限","取得相应学科教师资格证书","邢老师\n63045651","西城区南新华街17号"]
[{"$f":"MAX(A$5:A242)+1","v":53},238,"北京市宣武回民小学","全额事业","音乐教师","专技岗","专技13级",1,"应届毕业生","北京","25周岁及以下","本科","取得相应学位",null,"音乐学、小学教育","不限","不限","不限","取得相应学科教师资格证书","满老师\n15910828707","西城区牛街西里一区5号"]
[null,239,"北京市宣武回民小学","全额事业","体育与健康教师","专技岗","专技13级",1,"社会人员","北京","30周岁及以下","本科","取得相应学位",null,"运动训练、体能训练","不限","1年及以上","不限","取得相应学科教师资格证书","满老师\n15910828707","西城区牛街西里一区5号"]
[{"$f":"MAX(A$5:A244)+1","v":54},240,"北京市西城区登莱小学","全额事业","科学教师","专技岗","专技13级",1,"应届毕业生","北京","25周岁及以下","本科","取得相应学位",null,"小学教育、科学教育","不限","不限","不限","取得相应学科教师资格证书","崇老师\n13699143913","西城区登莱胡同29号"]
[null,241,"北京市西城区登莱小学","全额事业","信息技术教师","专技岗","专技13级",1,"社会人员","北京","25周岁及以下","本科","取得相应学位",null,"计算机科学与技术、计算机类专业","不限","1年及以上","不限","取得相应学科教师资格证书","崇老师\n13699143913","西城区登莱胡同29号"]
[{"$f":"MAX(A$5:A246)+1","v":55},242,"北京小学广内分校","全额事业","数学教师","专技岗","专技13级",1,"应届毕业生","北京","30周岁及以下","本科及以上","取得相应学位","学科教学（数学）、基础数学","数学与应用数学、数据计算及应用","不限","不限","不限","取得相应学科教师资格证书","赵老师\n15601142716","西城区北线阁12号"]
[{"$f":"MAX(A$5:A247)+1","v":56},243,"北京市西城区康乐里小学","全额事业","科学教师","专技岗","专技13级",2,"应届毕业生","北京","30周岁及以下","本科及以上","取得相应学位","科学与技术教育、小学教育","科学教育、小学教育","不限","不限","不限","取得相应学科教师资格证书；能胜任班主任工作 ","张老师\n63032214","西城区储库营康乐里2号"]
[null,244,"北京市西城区康乐里小学","全额事业","语文教师","专技岗","专技13级",1,"应届毕业生","北京","30周岁及以下","硕士研究生及以上","取得相应学位","学科教学（语文）、中国语言文学、课程与教学论、学校课程与教学",null,"不限","不限","不限","取得相应学科教师资格证书；能胜任班主任工作","张老师\n63032214","西城区储库营康乐里2号"]
[{"$f":"MAX(A$5:A249)+1","v":57},245,"北京小学","全额事业","道德与法治教师","专技岗","专技10级",1,"社会人员","北京","40周岁及以下","硕士研究生及以上","取得相应学位","学科教学（思政）、法学、政治学",null,"一级教师","10年及以上","中共党员","取得相应学科小学教师资格证书","唐老师\n58370226","西城区槐柏树街9号"]
[null,246,"北京小学","全额事业","音乐教师","专技岗","专技13级",1,"应届毕业生","北京","30周岁及以下","本科及以上","取得相应学位","音乐学、音乐","音乐学、小学教育","不限","不限","不限","取得相应学科教师资格证书","唐老师\n58370226","西城区槐柏树街9号"]
[{"$f":"MAX(A$5:A251)+1","v":58},247,"北京第一实验小学红莲分校","全额事业","语文教师","专技岗","专技13级",2,"应届毕业生","北京","30周岁及以下","本科及以上","取得相应学位","中国语言文学、学科教学（语文）","汉语言文学、小学教育","不限","不限","不限","取得相应学科教师资格证书","周老师\n18401351178","西城区红莲中里14号"]
[null,248,"北京第一实验小学红莲分校","全额事业","数学教师","专技岗","专技13级",1,"应届毕业生","北京","30周岁及以下","本科及以上","取得相应学位","数学、学科教学（数学）","数学与应用数学、小学教育","不限","不限","不限","取得相应学科教师资格证书","周老师\n18401351178","西城区红莲中里14号"]
[{"$f":"MAX(A$5:A253)+1","v":59},249,"北京市西城区三义里小学","全额事业","英语教师","专技岗","专技13级",1,"应届毕业生","北京","25周岁及以下","本科","取得相应学位",null,"英语、翻译","不限","不限","不限","取得相应学科教师资格证书","彭老师\n63365524","西城区三义里5号"]
[{"$f":"MAX(A$5:A254)+1","v":60},250,"北京小学天宁寺分校","全额事业","语文教师","专技岗","专技13级",2,"应届毕业生","北京","30周岁及以下","本科及以上","取得相应学位","中国语言文学、 小学教育","小学教育、汉语言文学","不限","不限","不限","取得相应学科教师资格证书","勾老师\n13521580062","西城区天宁寺前街35号"]
[null,251,"北京小学天宁寺分校","全额事业","数学教师","专技岗","专技13级",2,"应届毕业生","北京","30周岁及以下","本科及以上","取得相应学位","数学、小学教育","数学类、小学教育","不限","不限","不限","取得相应学科教师资格证书","勾老师\n13521580062","西城区天宁寺前街35号"]
[{"$f":"MAX(A$5:A256)+1","v":61},252,"北京第二实验小学广外分校","全额事业","美术教师","专技岗","专技13级",1,"应届毕业生","北京","25周岁及以下","本科","取得相应学位",null,"美术学、工艺美术","不限","不限","不限","取得相应学科教师资格证书","张老师\n13810494319","西城区红居南街2号"]
[{"$f":"MAX(A$5:A257)+1","v":62},253,"北京市第八中学附属小学","全额事业","体育与健康教师","专技岗","专技13级",1,"应届毕业生","北京","25周岁及以下","本科","取得相应学位",null,"体育教育、体能训练","不限","不限","不限","取得相应学科教师资格证书","金老师\n13910882833","西城区福州馆街3号"]
[null,254,"北京市第八中学附属小学","全额事业","信息技术教师","专技岗","专技13级",1,"应届毕业生","北京","30周岁及以下","硕士研究生","取得相应学位","计算机应用技术、计算机科学与技术学科",null,"不限","不限","不限","取得相应学科教师资格证书","金老师\n13910882833","西城区福州馆街3号"]
[{"$f":"MAX(A$5:A259)+1","v":63},255,"北京市西城区陶然亭小学","全额事业","语文教师","专技岗","专技13级",1,"应届毕业生","北京","30周岁及以下","本科及以上","取得相应学位","中国语言文学学科、学科教学（语文）、小学教育","小学教育、汉语言文学","不限","不限","不限","取得相应学科教师资格证书","杨老师\n18611316853","西城区龙泉胡同5号"]
[null,256,"北京市西城区陶然亭小学","全额事业","数学教师","专技岗","专技12级",1,"应届毕业生或社会人员","北京","35周岁及以下","本科及以上","取得相应学位","学科教学（数学）、小学教育、数学","小学教育、数学类","二级教师","3年及以上","不限","取得相应学科教师资格证书；应届毕业生职称及专业工作年限不限，年龄为30周岁及以下，所聘岗位等级为专技13级","杨老师\n18611316853","西城区龙泉胡同5号"]
[null,257,"北京市西城区陶然亭小学","全额事业","英语教师","专技岗","专技13级",1,"社会人员","北京","30周岁及以下","硕士研究生","取得相应学位","学科教学（英语）、小学教育",null,"不限","1年及以上","不限","取得相应学科教师资格证书","杨老师\n18611316853","西城区龙泉胡同5号"]
[{"$f":"MAX(A$5:A262)+1","v":64},258,"北京市第十五中学附属小学","全额事业","信息技术教师","专技岗","专技13级",1,"应届毕业生","北京","25周岁及以下","本科","取得相应学位",null,"计算机科学与技术、空间信息与数字技术","不限","不限","不限","取得相应学科教师资格证书","何老师\n63517476","西城区白纸坊东街27号"]
[{"$f":"MAX(A$5:A263)+1","v":65},259,"北京市宣武师范学校附属第一小学","全额事业","语文教师","专技岗","专技13级",2,"应届毕业生","北京","30周岁及以下","本科及以上","取得相应学位","学科教学（语文）、小学教育","汉语言文学、小学教育","不限","不限","不限","取得相应学科教师资格证书","单老师\n17274906522\n代老师\n18800029756","西城区右安门内大街26号"]
[null,260,"北京市宣武师范学校附属第一小学","全额事业","科学教师","专技岗","专技13级",1,"应届毕业生","北京","30周岁及以下","本科及以上","取得相应学位","科学与技术教育、小学教育","地理科学、环境科学","不限","不限","不限","取得相应学科教师资格证书","单老师\n17274906522\n代老师\n18800029756","西城区右安门内大街26号"]